Workbook

Sheet Navigation
K7: Alok Khad Beej Bhandar - Rewari
L8: Stock and Sales FOR THE PERIOD 01-Apr-2020 TO 31-Mar-2021

Sheet Dealer Report
A1: ALOK KHAD BHANDAR 20-21
A2: SEED LIC NO 879, PEST LIC NO 487,
A3: KHAD LIC (W) 1750 ,(R) 1137,
A4: SHOP NO 29 KANINA ANAJ MANDI
A5: 01285-235147,9416089660
A6: 8689044700
A7: Bayer Crop Science
A8: Stock Summary
A9: 1-Apr-2020 to 31-Mar-2021
B10: Bayer Crop Science
B11: ALOK KHAD BHANDAR 20-21
A12: Particulars | B12: 1-Apr-2020 to 31-Mar-2021
B13: Opening Balance | C13: Inwards | D13: Outwards | E13: Closing Balance
B14: Quantity | C14: Quantity | D14: Quantity | E14: Quantity
A15: ADMIRE 2GRM | C15: 160 | E15: 160
A16: ADUE WG 40 GRM
A17: ANTRACOL 100 GRM | C17: 50 | E17: 50
A18: ANTRACOL 1 KG | C18: 490 | D18: 480 | E18: 10
A19: ANTRACOL 250 GRM | C19: 560 | D19: 240 | E19: 320
A20: ANTRACOL 500 GRM | C20: 940 | D20: 360 | E20: 580
A21: BAYER 5210 (1KG) | C21: 955 | D21: 705 | E21: 250
A22: BAYER 5222(1KG) | C22: 2191 | D22: 2255 | E22: -64
A23: BAYER 5222 500 GRM | C23: 300 | D23: 300
A24: BAYER 5232 1 KG | C24: 150 | D24: 60 | E24: 90
A25: BAYER 7172 BG II | C25: 1908 | D25: 949 | E25: 959
A26: BAYER 9001 1.5 KG | C26: 15796 | D26: 14440 | E26: 1356
A27: BAYER 9001 4.5 KG
A28: BAYER 9444 1.5 KG | C28: 5676 | D28: 5930 | E28: -254
A29: BAYER 9444 GOLD
A30: BAYER 9450 1.5 KG | C30: 2418 | D30: 2490 | E30: -72
A31: BAYER ALANTO 250 ML
A32: BAYER ALANTO SC 100 ML
A33: BAYER ALIETTE 250 GRM | C33: 20 | E33: 20
A34: BAYER ALIETTE WP80 100GM | C34: 40 | E34: 40
A35: BAYER AMBITION 1 LIT | C35: 250 | D35: 180 | E35: 70
A36: BAYER AMBITION 250 ML | C36: 1400 | D36: 365 | E36: 1035
A37: BAYER ATANTIS 160 GRM | C37: 180 | D37: 180
A38: BAYER BELT EXPERT 100 ML | C38: 50 | D38: 5 | E38: 45
A39: BAYER BUONOS 250 ML | C39: 80 | D39: 5 | E39: 75
A40: BAYER BUONOS SC 500 ML | C40: 20 | E40: 20
A41: BAYER CONFIDOR 100 ML | C41: 1410 | D41: 505 | E41: 905
A42: BAYER EMESTO PRIME 100 ML | C42: 50 | E42: 50
A43: BAYER EVERGOL EXTEND 100 ML | C43: 50 | E43: 50
A44: BAYER EVERGOL XTEND 40 ML | C44: 100 | E44: 100
A45: BAYER FAME 100 ML | B45: 5 | D45: 3 | E45: 2
A46: BAYER FAME 50 ML
A47: BAYER FENOS QUICK 100 ML | C47: 50 | E47: 50
A48: BAYER FOLICUR EC 100 ML | B48: 30 | C48: 50 | D48: 80
A49: BAYER FOLICUR EC 250 ML | C49: 160 | D49: 105 | E49: 55
A50: BAYER FOLICUR EC 500 ML
A51: BAYER FOOST 500 GRM | C51: 3892 | D51: 2272 | E51: 1620
A52: BAYER GAUCHO 1 LIT | C52: 10 | D52: 10
A53: BAYER GAUCHO 5 LIT | C53: 10 | D53: 8 | E53: 2
A54: BAYER GAUCHO 9 ML | C54: 2900 | D54: 800 | E54: 2100
A55: BAYER GAUCHO FS 50 ML | C55: 1300 | D55: 638 | E55: 662
A56: BAYER INFINITO 500 ML | C56: 40 | D56: 7 | E56: 33
A57: BAYER JUMP 2 GRM | C57: 3205 | D57: 2800 | E57: 405
A58: BAYER LARVIN 250 GRM | C58: 60 | D58: 20 | E58: 40
A59: BAYER LAUDIS SC 115 ML | C59: 336 | D59: 353 | E59: -17
A60: BAYER LAUDIS SC 57.5ML | C60: 2046 | D60: 1760 | E60: 286
A61: BAYER LESANTA 100GRM | D61: 1 | E61: -1
A62: BAYER LESENTA 250 GRM | D62: 16 | E62: -16
A63: BAYER LUCIFER 160 GRM
A64: BAYER LUNA EXPERIENCE 250 ML | C64: 40 | D64: 5 | E64: 35
A65: BAYER MELODY DUO 400 GM | C65: 10 | E65: 10
A66: BAYER MELODY DUO 400 GRM | D66: 8 | E66: -8
A67: BAYER MILLET 9180 1.5 KG | C67: 2549 | D67: 2380 | E67: 169
A68: BAYER NATIVO 1 KG | C68: 10 | D68: 10
A69: BAYER NATIVO 250 GRM | C69: 80 | D69: 28 | E69: 52
A70: BAYER NATIVO 50 GRM | B70: 75 | D70: 73 | E70: 2
A71: BAYER NATIVO WG 75 100 GRM | C71: 650 | D71: 365 | E71: 285
A72: BAYER NATIVO WG75 500GM | B72: 10 | D72: 9 | E72: 1
A73: BAYER OBERON 100 ML | C73: 350 | D73: 305 | E73: 45
A74: BAYER OBERON 200 ML | B74: 60 | C74: 209 | D74: 162 | E74: 107
A75: BAYER OBERON 500 ML | C75: 11 | D75: 11
A76: BAYER PLANOFIX 250 ML | B76: 80 | D76: 47 | E76: 33
A77: BAYER PLANOFIX SL 100 ML | C77: 1250 | D77: 405 | E77: 845
A78: BAYER RAXIL EASY 13.4ML | C78: 400 | D78: 40 | E78: 360
A79: BAYER RAXIL EASY FS60 1 LIT | C79: 100 | D79: 100
A80: BAYERREGENT 100ML | C80: 3800 | D80: 3785 | E80: 15
A81: BAYER REGENT 1 LIT | C81: 570 | D81: 475 | E81: 95
A82: BAYER REGENT 250 ML | C82: 4100 | D82: 3800 | E82: 300
A83: BAYER REGENT 25 KG | C83: 1000 | D83: 800 | E83: 200
A84: BAYER REGENT 500 ML | C84: 2058 | D84: 1816 | E84: 242
A85: BAYER REGENT GOLD 100 ML | B85: 100 | D85: 50 | E85: 50
A86: BAYER REGENT GOLD 250 ML | B86: 60 | D86: 35 | E86: 25
A87: BAYER REGENT GR 0.3 % | B87: 1000 | C87: 8260 | D87: 5920 | E87: 3340
A88: BAYER REGENT ULTRA GR0 6 (4KG) | C88: 260 | E88: 260
A89: BAYER SECTIN WG60 (100GM)
A90: BAYER SECTIN WG 60 (600GM) | C90: 120 | D90: 100 | E90: 20
A91: BAYER SECTION 1 KG | C91: 50 | D91: 48 | E91: 2
A92: BAYER SENCOR 100 GRM | C92: 1380 | D92: 1120 | E92: 260
A93: BAYER SIMBOLA 250 GRM | C93: 20 | E93: 20
A94: BAYER SOLOMAN 250 ML | B94: 5 | C94: 320 | D94: 202 | E94: 123
A95: BAYER SPINTOR SC495 (75ML)
A96: BAYER SUNRISE 100 GRM | C96: 200 | D96: 25 | E96: 175
A97: BAYER VELUM PRIME 500 ML | C97: 20 | E97: 20
A98: BAYER VELUM PRIME SC 250ML | B98: 1 | C98: 120 | D98: 12 | E98: 109
A99: BAYER WHIP SUPER 250 ML | C99: 40 | D99: 5 | E99: 35
A100: BAYER XTEND 40 ML
A101: BAYRE REGENT GR 1 KG | C101: 2360 | D101: 2400 | E101: -40
A102: CONFIDOR 1 LIT | C102: 60 | D102: 20 | E102: 40
A103: CONFIDOR 250 ML | C103: 360 | D103: 105 | E103: 255
A104: CONFIDOR 500 MIL | C104: 160 | D104: 40 | E104: 120
A105: CONFIDOR SL200 50 ML
A106: CONFIDOR SUPER 100 ML
A107: CONFIDOR SUPER 50 ML
A108: CONIFDOR SUPER 50 ML
A109: DECIS EC 100 ML | D109: 10 | E109: -10
A110: DECIS EC101 100 ML
A111: DECIS EC 1 LIT
A112: DECIS EC28 250ML | C112: 40 | E112: 40
A113: DECIS EC28 500 ML | C113: 40 | E113: 40
A114: MOVENTO ENERGY 100 ML | B114: 15 | D114: 12 | E114: 3
A115: MOVENTO ENERGY SC 1 LIT | B115: 20 | C115: 90 | D115: 79 | E115: 31
A116: MOVENTO ENERGY SC 250 ML | B116: 80 | C116: 600 | D116: 216 | E116: 464
A117: SOLOMON 100 ML | C117: 150 | D117: 55 | E117: 95
A118: SOLOMON 1 LIT
A119: SOLOMON 500 ML | C119: 20 | D119: 5 | E119: 15
A120: SURPASS 7272 BGII | C120: 616 | D120: 364 | E120: 252
A121: SURPASS SAFAL-555 | C121: 1400 | E121: 1400
A122: Grand Total | B122: =SUM(B15:B121) -> 1541 | C122: 83176 | D122: 63769 | E122: 20948

Sheet Dealer Report working
A1: Particulars | B1: Opening Qty | C1: Purchase Qty | D1: Sales Qty | E1: CLSG | F1: Master Name | K1: Values
A2: ADMIRE 2GRM | C2: 160 | E2: 160 | F2: ADMIRE WG70 125X(8X2GR) BAG IN | J2: Row Labels | K2: Sum of Opening Qty | L2: Sum of Purchase Qty | M2: Sum of Sales Qty | N2: Sum of CLSG
A3: ADUE WG 40 GRM | F3: ADUE WG70 15X40G BOT IN | J3: ADMIRE WG70 125X(8X2GR) BAG IN | L3: 160 | N3: 160
A4: ANTRACOL 100 GRM | C4: 50 | E4: 50 | F4: ANTRACOL (T) WP70 50X100GR BAG IN | J4: ADUE WG70 15X40G BOT IN
A5: ANTRACOL 1 KG | C5: 490 | D5: 480 | E5: 10 | F5: ANTRACOL (T) WP70 10X1KG BAG IN | J5: ALANTO (T) SC240 40X250ML BOT IN
A6: ANTRACOL 250 GRM | C6: 560 | D6: 240 | E6: 320 | F6: ANTRACOL (T) WP70 40X250GR BAG IN | J6: ALANTO (T) SC240 50X100ML BOT IN
A7: ANTRACOL 500 GRM | C7: 940 | D7: 360 | E7: 580 | F7: ANTRACOL (T) WP70 20X500GR BAG IN | J7: ALIETTE WP80 20X250GR BAG IN | L7: 20 | N7: 20
A8: BAYER 5210 (1KG) | C8: 955 | D8: 705 | E8: 250 | F8: MUSTARD PA 5210 (LOC) 30X1KG BAG IN | J8: ALIETTE WP80 40X100GR BAG IN | L8: 40 | N8: 40
A9: BAYER 5222(1KG) | C9: 2191 | D9: 2255 | E9: -64 | F9: MUSTARD 5222 30X1KG BAG IN | J9: AMBITION 10X1L BOT IN | L9: 250 | M9: 180 | N9: 70
A10: BAYER 5222 500 GRM | C10: 300 | D10: 300 | F10: MUSTARD 5222 60X500G BAG IN | J10: AMBITION 40X250ML BOT IN | L10: 1400 | M10: 365 | N10: 1035
A11: BAYER 5232 1 KG | C11: 150 | D11: 60 | E11: 90 | F11: MUSTARD PA 5232 (LOC) 30X1KG BAG IN | J11: ANTRACOL (T) WP70 10X1KG BAG IN | L11: 490 | M11: 480 | N11: 10
A12: BAYER 7172 BG II | C12: 1908 | D12: 949 | E12: 959 | F12: SURPASS 7172 BG2 20X450GR BAG IN | J12: ANTRACOL (T) WP70 20X500GR BAG IN | L12: 940 | M12: 360 | N12: 580
A13: BAYER 9001 1.5 KG | C13: 15796 | D13: 14440 | E13: 1356 | F13: MILLET HYBRID 9001 20X1.5 BAG IN | J13: ANTRACOL (T) WP70 40X250GR BAG IN | L13: 560 | M13: 240 | N13: 320
A14: BAYER 9001 4.5 KG | F14: MILLET 9001 (LOC) 6X4.5KG BAG IN | J14: ANTRACOL (T) WP70 50X100GR BAG IN | L14: 50 | N14: 50
A15: BAYER 9444 1.5 KG | C15: 5676 | D15: 5930 | E15: -254 | F15: MILLET HYBRID 9444 20X1.5KG BAG IN | J15: ATLANTIS KL3 6 15X160GR BOT IN | L15: 180 | M15: 180
A16: BAYER 9444 GOLD | F16: MILLET HYBRID 9444 GOLD 20X1.50KG BAG IN | J16: BELT EXPERT SC480 50X100ML BOT IN | L16: 50 | M16: 5 | N16: 45
A17: BAYER 9450 1.5 KG | C17: 2418 | D17: 2490 | E17: -72 | F17: MILLET HYBRID 9450 20X1 5KG BAG IN | J17: BUONOS SC430 20X500ML BOT IN | L17: 20 | N17: 20
A18: BAYER ALANTO 250 ML | F18: ALANTO (T) SC240 40X250ML BOT IN | J18: BUONOS SC430 40X250ML BOT IN | L18: 80 | M18: 5 | N18: 75
A19: BAYER ALANTO SC 100 ML | F19: ALANTO (T) SC240 50X100ML BOT IN | J19: CONFIDOR (T) SL200 100X50ML BOT IN
A20: BAYER ALIETTE 250 GRM | C20: 20 | E20: 20 | F20: ALIETTE WP80 20X250GR BAG IN | J20: CONFIDOR (T) SL200 10X1L BOT IN | L20: 60 | M20: 20 | N20: 40
A21: BAYER ALIETTE WP80 100GM | C21: 40 | E21: 40 | F21: ALIETTE WP80 40X100GR BAG IN | J21: CONFIDOR (T) SL200 20X250ML BOT IN | L21: 360 | M21: 105 | N21: 255
A22: BAYER AMBITION 1 LIT | C22: 250 | D22: 180 | E22: 70 | F22: AMBITION 10X1L BOT IN | J22: CONFIDOR (T) SL200 20X500ML BOT IN | L22: 160 | M22: 40 | N22: 120
A23: BAYER AMBITION 250 ML | C23: 1400 | D23: 365 | E23: 1035 | F23: AMBITION 40X250ML BOT IN | J23: CONFIDOR (T) SL200 50X100ML BOT IN | L23: 1410 | M23: 505 | N23: 905
A24: BAYER ATANTIS 160 GRM | C24: 180 | D24: 180 | F24: ATLANTIS KL3 6 15X160GR BOT IN | J24: CONFIDOR SUPER (T) SC350 50X100ML BOT IN
A25: BAYER BELT EXPERT 100 ML | C25: 50 | D25: 5 | E25: 45 | F25: BELT EXPERT SC480 50X100ML BOT IN | J25: CONFIDOR SUPER (T) SC350 50X50ML BOT IN
A26: BAYER BUONOS 250 ML | C26: 80 | D26: 5 | E26: 75 | F26: BUONOS SC430 40X250ML BOT IN | J26: DECIS EC 28 10X1L BOT IN
A27: BAYER BUONOS SC 500 ML | C27: 20 | E27: 20 | F27: BUONOS SC430 20X500ML BOT IN | J27: DECIS EC 28 20X500ML BOT IN | L27: 40 | N27: 40
A28: BAYER CONFIDOR 100 ML | C28: 1410 | D28: 505 | E28: 905 | F28: CONFIDOR (T) SL200 50X100ML BOT IN | J28: DECIS EC 28 40X250ML BOT IN | L28: 40 | N28: 40
A29: BAYER EMESTO PRIME 100 ML | C29: 50 | E29: 50 | F29: EMESTO PRIME FS240 50X100ML BOT IN | J29: DECIS EC101-2 50X100ML BOX IN | M29: 10 | N29: -10
A30: BAYER EVERGOL EXTEND 100 ML | C30: 50 | E30: 50 | F30: EVERGOL XTEND FS308 50X100ML BOT IN | J30: DISCOUNTINUE PRODUCT | L30: 1400 | N30: 1400
A31: BAYER EVERGOL XTEND 40 ML | C31: 100 | E31: 100 | F31: EVERGOL XTEND FS308 100X40ML BOT IN | J31: EMESTO PRIME FS240 50X100ML BOT IN | L31: 50 | N31: 50
A32: BAYER FAME 100 ML | B32: 5 | D32: 3 | E32: 2 | F32: FAME (T) SC480 20X100ML BOT IN | J32: EVERGOL XTEND FS308 100X40ML BOT IN | L32: 100 | N32: 100
A33: BAYER FAME 50 ML | F33: FAME (T) SC480 40X50ML BOT IN | J33: EVERGOL XTEND FS308 50X100ML BOT IN | L33: 50 | N33: 50
A34: BAYER FENOS QUICK 100 ML | C34: 50 | E34: 50 | F34: FENOS QUICK SC150 50X100ML BOT IN | J34: FAME (T) SC480 20X100ML BOT IN | K34: 5 | M34: 3 | N34: 2
A35: BAYER FOLICUR EC 100 ML | B35: 30 | C35: 50 | D35: 80 | F35: FOLICUR (T) EC250 50X100ML BOT IN | J35: FAME (T) SC480 40X50ML BOT IN
A36: BAYER FOLICUR EC 250 ML | C36: 160 | D36: 105 | E36: 55 | F36: FOLICUR (T) EC250 40X250ML BOT IN | J36: FENOS QUICK SC150 50X100ML BOT IN | L36: 50 | N36: 50
A37: BAYER FOLICUR EC 500 ML | F37: FOLICUR (T) EC250 20X500ML BOT IN | J37: FOLICUR (T) EC250 20X500ML BOT IN
A38: BAYER FOOST 500 GRM | C38: 3892 | D38: 2272 | E38: 1620 | F38: FOOST WP50 24X500G BAG IN | J38: FOLICUR (T) EC250 40X250ML BOT IN | L38: 160 | M38: 105 | N38: 55
A39: BAYER GAUCHO 1 LIT | C39: 10 | D39: 10 | F39: GAUCHO FS600 2X(5X1L) BOT IN | J39: FOLICUR (T) EC250 50X100ML BOT IN | K39: 30 | L39: 50 | M39: 80
A40: BAYER GAUCHO 5 LIT | C40: 10 | D40: 8 | E40: 2 | F40: GAUCHO FS600 2X5L BOT IN | J40: FOOST WP50 24X500G BAG IN | L40: 3892 | M40: 2272 | N40: 1620
A41: BAYER GAUCHO 9 ML | C41: 2900 | D41: 800 | E41: 2100 | F41: GAUCHO FS600 5X(20X9)ML BOT IN | J41: GAUCHO FS600 100X50ML BOT IN | L41: 1300 | M41: 638 | N41: 662
A42: BAYER GAUCHO FS 50 ML | C42: 1300 | D42: 638 | E42: 662 | F42: GAUCHO FS600 100X50ML BOT IN | J42: GAUCHO FS600 2X(5X1L) BOT IN | L42: 10 | M42: 10
A43: BAYER INFINITO 500 ML | C43: 40 | D43: 7 | E43: 33 | F43: INFINITO SC687 5 20X500ML BOT IN | J43: GAUCHO FS600 2X5L BOT IN | L43: 10 | M43: 8 | N43: 2
A44: BAYER JUMP 2 GRM | C44: 3205 | D44: 2800 | E44: 405 | F44: JUMP WG80 160X(10X2GR) BAG IN | J44: GAUCHO FS600 5X(20X9)ML BOT IN | L44: 2900 | M44: 800 | N44: 2100
A45: BAYER LARVIN 250 GRM | C45: 60 | D45: 20 | E45: 40 | F45: LARVIN (T) WP75 20X250GR BAG IN | J45: INFINITO SC687 5 20X500ML BOT IN | L45: 40 | M45: 7 | N45: 33
A46: BAYER LAUDIS SC 115 ML | C46: 336 | D46: 353 | E46: -17 | F46: LAUDIS SC630 8X115ML BOT IN | J46: JUMP WG80 160X(10X2GR) BAG IN | L46: 3205 | M46: 2800 | N46: 405
A47: BAYER LAUDIS SC 57.5ML | C47: 2046 | D47: 1760 | E47: 286 | F47: LAUDIS SC630 10X57.5ML BOT IN | J47: LARVIN (T) WP75 20X250GR BAG IN | L47: 60 | M47: 20 | N47: 40
A48: BAYER LESANTA 100GRM | D48: 1 | E48: -1 | F48: LESENTA WG80 50X100GR BAG IN | J48: LAUDIS SC630 10X57.5ML BOT IN | L48: 2046 | M48: 1760 | N48: 286
A49: BAYER LESENTA 250 GRM | D49: 16 | E49: -16 | F49: LESENTA WG80 20X250GR BAG IN | J49: LAUDIS SC630 8X115ML BOT IN | L49: 336 | M49: 353 | N49: -17
A50: BAYER LUCIFER 160 GRM | F50: LUCIFER (T) WP15 25X160GR BAG IN | J50: LESENTA WG80 20X250GR BAG IN | M50: 16 | N50: -16
A51: BAYER LUNA EXPERIENCE 250 ML | C51: 40 | D51: 5 | E51: 35 | F51: LUNA EXPERIENCE SC400 40X250ML BOT IN | J51: LESENTA WG80 50X100GR BAG IN | M51: 1 | N51: -1
A52: BAYER MELODY DUO 400 GM | C52: 10 | E52: 10 | F52: MELODY DUO WP66 8 10X400GR BAG IN | J52: LUCIFER (T) WP15 25X160GR BAG IN
A53: BAYER MELODY DUO 400 GRM | D53: 8 | E53: -8 | F53: MELODY DUO WP66 8 10X400GR BAG IN | J53: LUNA EXPERIENCE SC400 40X250ML BOT IN | L53: 40 | M53: 5 | N53: 35
A54: BAYER MILLET 9180 1.5 KG | C54: 2549 | D54: 2380 | E54: 169 | F54: MILLET PA 9180 (LOC) 20X1.50KG BAG IN | J54: MELODY DUO WP66 8 10X400GR BAG IN | L54: 10 | M54: 8 | N54: 2
A55: BAYER NATIVO 1 KG | C55: 10 | D55: 10 | F55: NATIVO WG75 10X1KG BAG IN | J55: MILLET 9001 (LOC) 6X4.5KG BAG IN
A56: BAYER NATIVO 250 GRM | C56: 80 | D56: 28 | E56: 52 | F56: NATIVO WG75 40X250GR BAG IN | J56: MILLET HYBRID 9001 20X1.5 BAG IN | L56: 15796 | M56: 14440 | N56: 1356
A57: BAYER NATIVO 50 GRM | B57: 75 | D57: 73 | E57: 2 | F57: NATIVO WG75 100X50GR BAG IN | J57: MILLET HYBRID 9444 20X1.5KG BAG IN | L57: 5676 | M57: 5930 | N57: -254
A58: BAYER NATIVO WG 75 100 GRM | C58: 650 | D58: 365 | E58: 285 | F58: NATIVO WG75 50X100GR BAG IN | J58: MILLET HYBRID 9444 GOLD 20X1.50KG BAG IN
A59: BAYER NATIVO WG75 500GM | B59: 10 | D59: 9 | E59: 1 | F59: NATIVO WG75 20X500GR BAG IN | J59: MILLET HYBRID 9450 20X1 5KG BAG IN | L59: 2418 | M59: 2490 | N59: -72
A60: BAYER OBERON 100 ML | C60: 350 | D60: 305 | E60: 45 | F60: OBERON (T) SC240 50X100ML BOT IN | J60: MILLET PA 9180 (LOC) 20X1.50KG BAG IN | L60: 2549 | M60: 2380 | N60: 169
A61: BAYER OBERON 200 ML | B61: 60 | C61: 209 | D61: 162 | E61: 107 | F61: OBERON (T) SC240 40X200ML BOT IN | J61: MOVENTO ENERGY SC240 10X1L BOT IN | K61: 20 | L61: 90 | M61: 79 | N61: 31
A62: BAYER OBERON 500 ML | C62: 11 | D62: 11 | F62: OBERON (T) SC240 20X500ML BOT IN | J62: MOVENTO ENERGY SC240 40X250ML BOT IN | K62: 80 | L62: 600 | M62: 216 | N62: 464
A63: BAYER PLANOFIX 250 ML | B63: 80 | D63: 47 | E63: 33 | F63: PLANOFIX SL4 5 40X250ML BOT IN | J63: MOVENTO ENERGY SC240 50X100ML BOT IN | K63: 15 | M63: 12 | N63: 3
A64: BAYER PLANOFIX SL 100 ML | C64: 1250 | D64: 405 | E64: 845 | F64: PLANOFIX SL4 5 50X100ML BOT IN | J64: MUSTARD 5222 30X1KG BAG IN | L64: 2191 | M64: 2255 | N64: -64
A65: BAYER RAXIL EASY 13.4ML | C65: 400 | D65: 40 | E65: 360 | F65: RAXIL EASY FS60 10X(20X13.4ML) BOT IN | J65: MUSTARD 5222 60X500G BAG IN | L65: 300 | M65: 300
A66: BAYER RAXIL EASY FS60 1 LIT | C66: 100 | D66: 100 | F66: RAXIL EASY FS60 10X1L BOT IN | J66: MUSTARD PA 5210 (LOC) 30X1KG BAG IN | L66: 955 | M66: 705 | N66: 250
A67: BAYERREGENT 100ML | C67: 3800 | D67: 3785 | E67: 15 | F67: REGENT (T) SC50 50X100ML BOT IN | J67: MUSTARD PA 5232 (LOC) 30X1KG BAG IN | L67: 150 | M67: 60 | N67: 90
A68: BAYER REGENT 1 LIT | C68: 570 | D68: 475 | E68: 95 | F68: REGENT (T) SC50 10X1L BOT IN | J68: NATIVO WG75 100X50GR BAG IN | K68: 75 | M68: 73 | N68: 2
A69: BAYER REGENT 250 ML | C69: 4100 | D69: 3800 | E69: 300 | F69: REGENT (T) SC50 20X250ML BOT IN | J69: NATIVO WG75 10X1KG BAG IN | L69: 10 | M69: 10
A70: BAYER REGENT 25 KG | C70: 1000 | D70: 800 | E70: 200 | F70: REGENT GR0 3 1X25KG BOX WW | J70: NATIVO WG75 20X500GR BAG IN | K70: 10 | M70: 9 | N70: 1
A71: BAYER REGENT 500 ML | C71: 2058 | D71: 1816 | E71: 242 | F71: REGENT (T) SC50 20X500ML BOT IN | J71: NATIVO WG75 40X250GR BAG IN | L71: 80 | M71: 28 | N71: 52
A72: BAYER REGENT GOLD 100 ML | B72: 100 | D72: 50 | E72: 50 | F72: REGENT GOLD SC200 50X100ML BOT IN | J72: NATIVO WG75 50X100GR BAG IN | L72: 650 | M72: 365 | N72: 285
A73: BAYER REGENT GOLD 250 ML | B73: 60 | D73: 35 | E73: 25 | F73: REGENT GOLD SC200 40X250ML BOT IN | J73: OBERON (T) SC240 20X500ML BOT IN | L73: 11 | M73: 11
A74: BAYER REGENT GR 0.3 % | B74: 1000 | C74: 8260 | D74: 5920 | E74: 3340 | F74: REGENT GR0 3 20X1KG BAG IN | J74: OBERON (T) SC240 40X200ML BOT IN | K74: 60 | L74: 209 | M74: 162 | N74: 107
A75: BAYER REGENT ULTRA GR0 6 (4KG) | C75: 260 | E75: 260 | F75: REGENT ULTRA GR0 6 5X4KG BAG IN | J75: OBERON (T) SC240 50X100ML BOT IN | L75: 350 | M75: 305 | N75: 45
A76: BAYER SECTIN WG60 (100GM) | F76: SECTIN WG60 50X100GR BAG IN | J76: PLANOFIX SL4 5 40X250ML BOT IN | K76: 80 | M76: 47 | N76: 33
A77: BAYER SECTIN WG 60 (600GM) | C77: 120 | D77: 100 | E77: 20 | F77: SECTIN WG60 20X600GR BAG IN | J77: PLANOFIX SL4 5 50X100ML BOT IN | L77: 1250 | M77: 405 | N77: 845
A78: BAYER SECTION 1 KG | C78: 50 | D78: 48 | E78: 2 | F78: SECTIN WG60 10X1KG BAG IN | J78: RAXIL EASY FS60 10X(20X13.4ML) BOT IN | L78: 400 | M78: 40 | N78: 360
A79: BAYER SENCOR 100 GRM | C79: 1380 | D79: 1120 | E79: 260 | F79: SENCOR WP70 60X100GR BAG IN | J79: RAXIL EASY FS60 10X1L BOT IN | L79: 100 | M79: 100
A80: BAYER SIMBOLA 250 GRM | C80: 20 | E80: 20 | F80: SIMBOLA (T) SG20 20X250G BOT IN | J80: REGENT (T) SC50 10X1L BOT IN | L80: 570 | M80: 475 | N80: 95
A81: BAYER SOLOMAN 250 ML | B81: 5 | C81: 320 | D81: 202 | E81: 123 | F81: SOLOMON OD300 40X250ML BOT IN | J81: REGENT (T) SC50 20X250ML BOT IN | L81: 4100 | M81: 3800 | N81: 300
A82: BAYER SPINTOR SC495 (75ML) | F82: SPINTOR SC495 20X75ML BOT IN | J82: REGENT (T) SC50 20X500ML BOT IN | L82: 2058 | M82: 1816 | N82: 242
A83: BAYER SUNRISE 100 GRM | C83: 200 | D83: 25 | E83: 175 | F83: SUNRICE WG15 100X50GR BOT IN | J83: REGENT (T) SC50 50X100ML BOT IN | L83: 3800 | M83: 3785 | N83: 15
A84: BAYER VELUM PRIME 500 ML | C84: 20 | E84: 20 | F84: VELUM PRIME SC400 20X500ML BOT IN | J84: REGENT GOLD SC200 40X250ML BOT IN | K84: 60 | M84: 35 | N84: 25
A85: BAYER VELUM PRIME SC 250ML | B85: 1 | C85: 120 | D85: 12 | E85: 109 | F85: VELUM PRIME SC400 40X250ML BOT IN | J85: REGENT GOLD SC200 50X100ML BOT IN | K85: 100 | M85: 50 | N85: 50
A86: BAYER WHIP SUPER 250 ML | C86: 40 | D86: 5 | E86: 35 | F86: WHIPSUPER (T) EC90 40X250ML BOT IN | J86: REGENT GR0 3 1X25KG BOX WW | L86: 1000 | M86: 800 | N86: 200
A87: BAYER XTEND 40 ML | F87: EVERGOL XTEND FS308 100X40ML BOT IN | J87: REGENT GR0 3 20X1KG BAG IN | K87: 1000 | L87: 10620 | M87: 8320 | N87: 3300
A88: BAYRE REGENT GR 1 KG | C88: 2360 | D88: 2400 | E88: -40 | F88: REGENT GR0 3 20X1KG BAG IN | J88: REGENT ULTRA GR0 6 5X4KG BAG IN | L88: 260 | N88: 260
A89: CONFIDOR 1 LIT | C89: 60 | D89: 20 | E89: 40 | F89: CONFIDOR (T) SL200 10X1L BOT IN | J89: SECTIN WG60 10X1KG BAG IN | L89: 50 | M89: 48 | N89: 2
A90: CONFIDOR 250 ML | C90: 360 | D90: 105 | E90: 255 | F90: CONFIDOR (T) SL200 20X250ML BOT IN | J90: SECTIN WG60 20X600GR BAG IN | L90: 120 | M90: 100 | N90: 20
A91: CONFIDOR 500 MIL | C91: 160 | D91: 40 | E91: 120 | F91: CONFIDOR (T) SL200 20X500ML BOT IN | J91: SECTIN WG60 50X100GR BAG IN
A92: CONFIDOR SL200 50 ML | F92: CONFIDOR (T) SL200 100X50ML BOT IN | J92: SENCOR WP70 60X100GR BAG IN | L92: 1380 | M92: 1120 | N92: 260
A93: CONFIDOR SUPER 100 ML | F93: CONFIDOR SUPER (T) SC350 50X100ML BOT IN | J93: SIMBOLA (T) SG20 20X250G BOT IN | L93: 20 | N93: 20
A94: CONFIDOR SUPER 50 ML | F94: CONFIDOR SUPER (T) SC350 50X50ML BOT IN | J94: SOLOMON OD300 10X1L BOT IN
A95: CONIFDOR SUPER 50 ML | F95: CONFIDOR SUPER (T) SC350 50X50ML BOT IN | J95: SOLOMON OD300 20X500ML BOT IN | L95: 20 | M95: 5 | N95: 15
A96: DECIS EC 100 ML | D96: 10 | E96: -10 | F96: DECIS EC101-2 50X100ML BOX IN | J96: SOLOMON OD300 40X250ML BOT IN | K96: 5 | L96: 320 | M96: 202 | N96: 123
A97: DECIS EC101 100 ML | F97: DECIS EC101-2 50X100ML BOX IN | J97: SOLOMON OD300 50X100ML BOT IN | L97: 150 | M97: 55 | N97: 95
A98: DECIS EC 1 LIT | F98: DECIS EC 28 10X1L BOT IN | J98: SPINTOR SC495 20X75ML BOT IN
A99: DECIS EC28 250ML | C99: 40 | E99: 40 | F99: DECIS EC 28 40X250ML BOT IN | J99: SUNRICE WG15 100X50GR BOT IN | L99: 200 | M99: 25 | N99: 175
A100: DECIS EC28 500 ML | C100: 40 | E100: 40 | F100: DECIS EC 28 20X500ML BOT IN | J100: SURPASS 7172 BG2 20X450GR BAG IN | L100: 1908 | M100: 949 | N100: 959
A101: MOVENTO ENERGY 100 ML | B101: 15 | D101: 12 | E101: 3 | F101: MOVENTO ENERGY SC240 50X100ML BOT IN | J101: SURPASS 7272 BG2 (LOC) 20X450G BAG IN | L101: 616 | M101: 364 | N101: 252
A102: MOVENTO ENERGY SC 1 LIT | B102: 20 | C102: 90 | D102: 79 | E102: 31 | F102: MOVENTO ENERGY SC240 10X1L BOT IN | J102: VELUM PRIME SC400 20X500ML BOT IN | L102: 20 | N102: 20
A103: MOVENTO ENERGY SC 250 ML | B103: 80 | C103: 600 | D103: 216 | E103: 464 | F103: MOVENTO ENERGY SC240 40X250ML BOT IN | J103: VELUM PRIME SC400 40X250ML BOT IN | K103: 1 | L103: 120 | M103: 12 | N103: 109
A104: SOLOMON 100 ML | C104: 150 | D104: 55 | E104: 95 | F104: SOLOMON OD300 50X100ML BOT IN | J104: WHIPSUPER (T) EC90 40X250ML BOT IN | L104: 40 | M104: 5 | N104: 35
A105: SOLOMON 1 LIT | F105: SOLOMON OD300 10X1L BOT IN | J105: Grand Total | K105: 1541 | L105: 83176 | M105: 63769 | N105: 20948
A106: SOLOMON 500 ML | C106: 20 | D106: 5 | E106: 15 | F106: SOLOMON OD300 20X500ML BOT IN
A107: SURPASS 7272 BGII | C107: 616 | D107: 364 | E107: 252 | F107: SURPASS 7272 BG2 (LOC) 20X450G BAG IN
A108: SURPASS SAFAL-555 | C108: 1400 | E108: 1400 | F108: DISCOUNTINUE PRODUCT

Sheet Master
A1: Item Details | B1: Master Name
A2: ADMIRE 2GRM | B2: ADMIRE WG70 125X(8X2GR) BAG IN
A3: ADUE WG 40 GRM | B3: ADUE WG70 15X40G BOT IN
A4: ANTRACOL 100 GRM | B4: ANTRACOL (T) WP70 50X100GR BAG IN
A5: ANTRACOL 1 KG | B5: ANTRACOL (T) WP70 10X1KG BAG IN
A6: ANTRACOL 250 GRM | B6: ANTRACOL (T) WP70 40X250GR BAG IN
A7: ANTRACOL 500 GRM | B7: ANTRACOL (T) WP70 20X500GR BAG IN
A8: BAYER 5210 (1KG) | B8: MUSTARD PA 5210 (LOC) 30X1KG BAG IN
A9: BAYER 5222(1KG) | B9: MUSTARD 5222 30X1KG BAG IN
A10: BAYER 5222 500 GRM | B10: MUSTARD 5222 60X500G BAG IN
A11: BAYER 5232 1 KG | B11: MUSTARD PA 5232 (LOC) 30X1KG BAG IN
A12: BAYER 7172 BG II | B12: SURPASS 7172 BG2 20X450GR BAG IN
A13: BAYER 9001 1.5 KG | B13: MILLET HYBRID 9001 20X1.5 BAG IN
A14: BAYER 9001 4.5 KG | B14: MILLET 9001 (LOC) 6X4.5KG BAG IN
A15: BAYER 9444 1.5 KG | B15: MILLET HYBRID 9444 20X1.5KG BAG IN
A16: BAYER 9444 GOLD | B16: MILLET HYBRID 9444 GOLD 20X1.50KG BAG IN
A17: BAYER 9450 1.5 KG | B17: MILLET HYBRID 9450 20X1 5KG BAG IN
A18: BAYER ALANTO 250 ML | B18: ALANTO (T) SC240 40X250ML BOT IN
A19: BAYER ALANTO SC 100 ML | B19: ALANTO (T) SC240 50X100ML BOT IN
A20: BAYER ALIETTE 250 GRM | B20: ALIETTE WP80 20X250GR BAG IN
A21: BAYER ALIETTE WP80 100GM | B21: ALIETTE WP80 40X100GR BAG IN
A22: BAYER AMBITION 1 LIT | B22: AMBITION 10X1L BOT IN
A23: BAYER AMBITION 250 ML | B23: AMBITION 40X250ML BOT IN
A24: BAYER ATANTIS 160 GRM | B24: ATLANTIS KL3 6 15X160GR BOT IN
A25: BAYER BELT EXPERT 100 ML | B25: BELT EXPERT SC480 50X100ML BOT IN
A26: BAYER BUONOS 250 ML | B26: BUONOS SC430 40X250ML BOT IN
A27: BAYER BUONOS SC 500 ML | B27: BUONOS SC430 20X500ML BOT IN
A28: BAYER CONFIDOR 100 ML | B28: CONFIDOR (T) SL200 50X100ML BOT IN
A29: BAYER EMESTO PRIME 100 ML | B29: EMESTO PRIME FS240 50X100ML BOT IN
A30: BAYER EVERGOL EXTEND 100 ML | B30: EVERGOL XTEND FS308 50X100ML BOT IN
A31: BAYER EVERGOL XTEND 40 ML | B31: EVERGOL XTEND FS308 100X40ML BOT IN
A32: BAYER FAME 100 ML | B32: FAME (T) SC480 20X100ML BOT IN
A33: BAYER FAME 50 ML | B33: FAME (T) SC480 40X50ML BOT IN
A34: BAYER FENOS QUICK 100 ML | B34: FENOS QUICK SC150 50X100ML BOT IN
A35: BAYER FOLICUR EC 100 ML | B35: FOLICUR (T) EC250 50X100ML BOT IN
A36: BAYER FOLICUR EC 250 ML | B36: FOLICUR (T) EC250 40X250ML BOT IN
A37: BAYER FOLICUR EC 500 ML | B37: FOLICUR (T) EC250 20X500ML BOT IN
A38: BAYER FOOST 500 GRM | B38: FOOST WP50 24X500G BAG IN
A39: BAYER GAUCHO 1 LIT | B39: GAUCHO FS600 2X(5X1L) BOT IN
A40: BAYER GAUCHO 5 LIT | B40: GAUCHO FS600 2X5L BOT IN
A41: BAYER GAUCHO 9 ML | B41: GAUCHO FS600 5X(20X9)ML BOT IN
A42: BAYER GAUCHO FS 50 ML | B42: GAUCHO FS600 100X50ML BOT IN
A43: BAYER INFINITO 500 ML | B43: INFINITO SC687 5 20X500ML BOT IN
A44: BAYER JUMP 2 GRM | B44: JUMP WG80 160X(10X2GR) BAG IN
A45: BAYER LARVIN 250 GRM | B45: LARVIN (T) WP75 20X250GR BAG IN
A46: BAYER LAUDIS SC 115 ML | B46: LAUDIS SC630 8X115ML BOT IN
A47: BAYER LAUDIS SC 57.5ML | B47: LAUDIS SC630 10X57.5ML BOT IN
A48: BAYER LESANTA 100GRM | B48: LESENTA WG80 50X100GR BAG IN
A49: BAYER LESENTA 250 GRM | B49: LESENTA WG80 20X250GR BAG IN
A50: BAYER LUCIFER 160 GRM | B50: LUCIFER (T) WP15 25X160GR BAG IN
A51: BAYER LUNA EXPERIENCE 250 ML | B51: LUNA EXPERIENCE SC400 40X250ML BOT IN
A52: BAYER MELODY DUO 400 GM | B52: MELODY DUO WP66 8 10X400GR BAG IN
A53: BAYER MELODY DUO 400 GRM | B53: MELODY DUO WP66 8 10X400GR BAG IN
A54: BAYER MILLET 9180 1.5 KG | B54: MILLET PA 9180 (LOC) 20X1.50KG BAG IN
A55: BAYER NATIVO 1 KG | B55: NATIVO WG75 10X1KG BAG IN
A56: BAYER NATIVO 250 GRM | B56: NATIVO WG75 40X250GR BAG IN
A57: BAYER NATIVO 50 GRM | B57: NATIVO WG75 100X50GR BAG IN
A58: BAYER NATIVO WG 75 100 GRM | B58: NATIVO WG75 50X100GR BAG IN
A59: BAYER NATIVO WG75 500GM | B59: NATIVO WG75 20X500GR BAG IN
A60: BAYER OBERON 100 ML | B60: OBERON (T) SC240 50X100ML BOT IN
A61: BAYER OBERON 200 ML | B61: OBERON (T) SC240 40X200ML BOT IN
A62: BAYER OBERON 500 ML | B62: OBERON (T) SC240 20X500ML BOT IN
A63: BAYER PLANOFIX 250 ML | B63: PLANOFIX SL4 5 40X250ML BOT IN
A64: BAYER PLANOFIX SL 100 ML | B64: PLANOFIX SL4 5 50X100ML BOT IN
A65: BAYER RAXIL EASY 13.4ML | B65: RAXIL EASY FS60 10X(20X13.4ML) BOT IN
A66: BAYER RAXIL EASY FS60 1 LIT | B66: RAXIL EASY FS60 10X1L BOT IN
A67: BAYERREGENT 100ML | B67: REGENT (T) SC50 50X100ML BOT IN
A68: BAYER REGENT 1 LIT | B68: REGENT (T) SC50 10X1L BOT IN
A69: BAYER REGENT 250 ML | B69: REGENT (T) SC50 20X250ML BOT IN
A70: BAYER REGENT 25 KG | B70: REGENT GR0 3 1X25KG BOX WW
A71: BAYER REGENT 500 ML | B71: REGENT (T) SC50 20X500ML BOT IN
A72: BAYER REGENT GOLD 100 ML | B72: REGENT GOLD SC200 50X100ML BOT IN
A73: BAYER REGENT GOLD 250 ML | B73: REGENT GOLD SC200 40X250ML BOT IN
A74: BAYER REGENT GR 0.3 % | B74: REGENT GR0 3 20X1KG BAG IN
A75: BAYER REGENT ULTRA GR0 6 (4KG) | B75: REGENT ULTRA GR0 6 5X4KG BAG IN
A76: BAYER SECTIN WG60 (100GM) | B76: SECTIN WG60 50X100GR BAG IN
A77: BAYER SECTIN WG 60 (600GM) | B77: SECTIN WG60 20X600GR BAG IN
A78: BAYER SECTION 1 KG | B78: SECTIN WG60 10X1KG BAG IN
A79: BAYER SENCOR 100 GRM | B79: SENCOR WP70 60X100GR BAG IN
A80: BAYER SIMBOLA 250 GRM | B80: SIMBOLA (T) SG20 20X250G BOT IN
A81: BAYER SOLOMAN 250 ML | B81: SOLOMON OD300 40X250ML BOT IN
A82: BAYER SPINTOR SC495 (75ML) | B82: SPINTOR SC495 20X75ML BOT IN
A83: BAYER SUNRISE 100 GRM | B83: SUNRICE WG15 100X50GR BOT IN
A84: BAYER VELUM PRIME 500 ML | B84: VELUM PRIME SC400 20X500ML BOT IN
A85: BAYER VELUM PRIME SC 250ML | B85: VELUM PRIME SC400 40X250ML BOT IN
A86: BAYER WHIP SUPER 250 ML | B86: WHIPSUPER (T) EC90 40X250ML BOT IN
A87: BAYER XTEND 40 ML | B87: EVERGOL XTEND FS308 100X40ML BOT IN
A88: BAYRE REGENT GR 1 KG | B88: REGENT GR0 3 20X1KG BAG IN
A89: CONFIDOR 1 LIT | B89: CONFIDOR (T) SL200 10X1L BOT IN
A90: CONFIDOR 250 ML | B90: CONFIDOR (T) SL200 20X250ML BOT IN
A91: CONFIDOR 500 MIL | B91: CONFIDOR (T) SL200 20X500ML BOT IN
A92: CONFIDOR SL200 50 ML | B92: CONFIDOR (T) SL200 100X50ML BOT IN
A93: CONFIDOR SUPER 100 ML | B93: CONFIDOR SUPER (T) SC350 50X100ML BOT IN
A94: CONFIDOR SUPER 50 ML | B94: CONFIDOR SUPER (T) SC350 50X50ML BOT IN
A95: CONIFDOR SUPER 50 ML | B95: CONFIDOR SUPER (T) SC350 50X50ML BOT IN
A96: DECIS EC 100 ML | B96: DECIS EC101-2 50X100ML BOX IN
A97: DECIS EC101 100 ML | B97: DECIS EC101-2 50X100ML BOX IN
A98: DECIS EC 1 LIT | B98: DECIS EC 28 10X1L BOT IN
A99: DECIS EC28 250ML | B99: DECIS EC 28 40X250ML BOT IN
A100: DECIS EC28 500 ML | B100: DECIS EC 28 20X500ML BOT IN
A101: MOVENTO ENERGY 100 ML | B101: MOVENTO ENERGY SC240 50X100ML BOT IN
A102: MOVENTO ENERGY SC 1 LIT | B102: MOVENTO ENERGY SC240 10X1L BOT IN
A103: MOVENTO ENERGY SC 250 ML | B103: MOVENTO ENERGY SC240 40X250ML BOT IN
A104: SOLOMON 100 ML | B104: SOLOMON OD300 50X100ML BOT IN
A105: SOLOMON 1 LIT | B105: SOLOMON OD300 10X1L BOT IN
A106: SOLOMON 500 ML | B106: SOLOMON OD300 20X500ML BOT IN
A107: SURPASS 7272 BGII | B107: SURPASS 7272 BG2 (LOC) 20X450G BAG IN
A108: SURPASS SAFAL-555 | B108: DISCOUNTINUE PRODUCT

Sheet Final Dealer Work
B2: PRODUCT | C2: ITEMALIAS | D2: Bpc | E2: Volume | F2: Opening Qty | G2: Purchase Qty | H2: Purchase Return Qty | I2: Sales Qty | J2: Sales Return Qty | K2: Transfer Qty | L2: Consignment Qty | M2: Adjustment Qty | N2: CLSG
B3: ADMIRE WG70 125X(8X2GR) BAG IN | F3: 0 | G3: 160 | H3: 0 | I3: 0 | J3: 0 | K3: 0 | L3: 0 | M3: 0 | N3: 160
B4: ADUE WG70 15X40G BOT IN | F4: 0 | G4: 0 | H4: 0 | I4: 0 | J4: 0 | K4: 0 | L4: 0 | M4: 0 | N4: 0
B5: ALANTO (T) SC240 40X250ML BOT IN | F5: 0 | G5: 0 | H5: 0 | I5: 0 | J5: 0 | K5: 0 | L5: 0 | M5: 0 | N5: 0
B6: ALANTO (T) SC240 50X100ML BOT IN | F6: 0 | G6: 0 | H6: 0 | I6: 0 | J6: 0 | K6: 0 | L6: 0 | M6: 0 | N6: 0
B7: ALIETTE WP80 20X250GR BAG IN | F7: 0 | G7: 20 | H7: 0 | I7: 0 | J7: 0 | K7: 0 | L7: 0 | M7: 0 | N7: 20
B8: ALIETTE WP80 40X100GR BAG IN | F8: 0 | G8: 40 | H8: 0 | I8: 0 | J8: 0 | K8: 0 | L8: 0 | M8: 0 | N8: 40
B9: AMBITION 10X1L BOT IN | F9: 0 | G9: 250 | H9: 0 | I9: 180 | J9: 0 | K9: 0 | L9: 0 | M9: 0 | N9: 70
B10: AMBITION 40X250ML BOT IN | F10: 0 | G10: 1400 | H10: 0 | I10: 365 | J10: 0 | K10: 0 | L10: 0 | M10: 0 | N10: 1035
B11: ANTRACOL (T) WP70 10X1KG BAG IN | F11: 0 | G11: 490 | H11: 0 | I11: 480 | J11: 0 | K11: 0 | L11: 0 | M11: 0 | N11: 10
B12: ANTRACOL (T) WP70 20X500GR BAG IN | F12: 0 | G12: 940 | H12: 0 | I12: 360 | J12: 0 | K12: 0 | L12: 0 | M12: 0 | N12: 580
B13: ANTRACOL (T) WP70 40X250GR BAG IN | F13: 0 | G13: 560 | H13: 0 | I13: 240 | J13: 0 | K13: 0 | L13: 0 | M13: 0 | N13: 320
B14: ANTRACOL (T) WP70 50X100GR BAG IN | F14: 0 | G14: 50 | H14: 0 | I14: 0 | J14: 0 | K14: 0 | L14: 0 | M14: 0 | N14: 50
B15: ATLANTIS KL3 6 15X160GR BOT IN | F15: 0 | G15: 180 | H15: 0 | I15: 180 | J15: 0 | K15: 0 | L15: 0 | M15: 0 | N15: 0
B16: BELT EXPERT SC480 50X100ML BOT IN | F16: 0 | G16: 50 | H16: 0 | I16: 5 | J16: 0 | K16: 0 | L16: 0 | M16: 0 | N16: 45
B17: BUONOS SC430 20X500ML BOT IN | F17: 0 | G17: 20 | H17: 0 | I17: 0 | J17: 0 | K17: 0 | L17: 0 | M17: 0 | N17: 20
B18: BUONOS SC430 40X250ML BOT IN | F18: 0 | G18: 80 | H18: 0 | I18: 5 | J18: 0 | K18: 0 | L18: 0 | M18: 0 | N18: 75
B19: CONFIDOR (T) SL200 100X50ML BOT IN | F19: 0 | G19: 0 | H19: 0 | I19: 0 | J19: 0 | K19: 0 | L19: 0 | M19: 0 | N19: 0
B20: CONFIDOR (T) SL200 10X1L BOT IN | F20: 0 | G20: 60 | H20: 0 | I20: 20 | J20: 0 | K20: 0 | L20: 0 | M20: 0 | N20: 40
B21: CONFIDOR (T) SL200 20X250ML BOT IN | F21: 0 | G21: 360 | H21: 0 | I21: 105 | J21: 0 | K21: 0 | L21: 0 | M21: 0 | N21: 255
B22: CONFIDOR (T) SL200 20X500ML BOT IN | F22: 0 | G22: 160 | H22: 0 | I22: 40 | J22: 0 | K22: 0 | L22: 0 | M22: 0 | N22: 120
B23: CONFIDOR (T) SL200 50X100ML BOT IN | F23: 0 | G23: 1410 | H23: 0 | I23: 505 | J23: 0 | K23: 0 | L23: 0 | M23: 0 | N23: 905
B24: CONFIDOR SUPER (T) SC350 50X100ML BOT IN | F24: 0 | G24: 0 | H24: 0 | I24: 0 | J24: 0 | K24: 0 | L24: 0 | M24: 0 | N24: 0
B25: CONFIDOR SUPER (T) SC350 50X50ML BOT IN | F25: 0 | G25: 0 | H25: 0 | I25: 0 | J25: 0 | K25: 0 | L25: 0 | M25: 0 | N25: 0
B26: DECIS EC 28 10X1L BOT IN | F26: 0 | G26: 0 | H26: 0 | I26: 0 | J26: 0 | K26: 0 | L26: 0 | M26: 0 | N26: 0
B27: DECIS EC 28 20X500ML BOT IN | F27: 0 | G27: 40 | H27: 0 | I27: 0 | J27: 0 | K27: 0 | L27: 0 | M27: 0 | N27: 40
B28: DECIS EC 28 40X250ML BOT IN | F28: 0 | G28: 40 | H28: 0 | I28: 0 | J28: 0 | K28: 0 | L28: 0 | M28: 0 | N28: 40
B29: DECIS EC101-2 50X100ML BOX IN | F29: 0 | G29: 0 | H29: 0 | I29: 10 | J29: 0 | K29: 0 | L29: 0 | M29: 0 | N29: -10
B30: DISCOUNTINUE PRODUCT | F30: 0 | G30: 1400 | H30: 0 | I30: 0 | J30: 0 | K30: 0 | L30: 0 | M30: 0 | N30: 1400
B31: EMESTO PRIME FS240 50X100ML BOT IN | F31: 0 | G31: 50 | H31: 0 | I31: 0 | J31: 0 | K31: 0 | L31: 0 | M31: 0 | N31: 50
B32: EVERGOL XTEND FS308 100X40ML BOT IN | F32: 0 | G32: 100 | H32: 0 | I32: 0 | J32: 0 | K32: 0 | L32: 0 | M32: 0 | N32: 100
B33: EVERGOL XTEND FS308 50X100ML BOT IN | F33: 0 | G33: 50 | H33: 0 | I33: 0 | J33: 0 | K33: 0 | L33: 0 | M33: 0 | N33: 50
B34: FAME (T) SC480 20X100ML BOT IN | F34: 5 | G34: 0 | H34: 0 | I34: 3 | J34: 0 | K34: 0 | L34: 0 | M34: 0 | N34: 2
B35: FAME (T) SC480 40X50ML BOT IN | F35: 0 | G35: 0 | H35: 0 | I35: 0 | J35: 0 | K35: 0 | L35: 0 | M35: 0 | N35: 0
B36: FENOS QUICK SC150 50X100ML BOT IN | F36: 0 | G36: 50 | H36: 0 | I36: 0 | J36: 0 | K36: 0 | L36: 0 | M36: 0 | N36: 50
B37: FOLICUR (T) EC250 20X500ML BOT IN | F37: 0 | G37: 0 | H37: 0 | I37: 0 | J37: 0 | K37: 0 | L37: 0 | M37: 0 | N37: 0
B38: FOLICUR (T) EC250 40X250ML BOT IN | F38: 0 | G38: 160 | H38: 0 | I38: 105 | J38: 0 | K38: 0 | L38: 0 | M38: 0 | N38: 55
B39: FOLICUR (T) EC250 50X100ML BOT IN | F39: 30 | G39: 50 | H39: 0 | I39: 80 | J39: 0 | K39: 0 | L39: 0 | M39: 0 | N39: 0
B40: FOOST WP50 24X500G BAG IN | F40: 0 | G40: 3892 | H40: 0 | I40: 2272 | J40: 0 | K40: 0 | L40: 0 | M40: 0 | N40: 1620
B41: GAUCHO FS600 100X50ML BOT IN | F41: 0 | G41: 1300 | H41: 0 | I41: 638 | J41: 0 | K41: 0 | L41: 0 | M41: 0 | N41: 662
B42: GAUCHO FS600 2X(5X1L) BOT IN | F42: 0 | G42: 10 | H42: 0 | I42: 10 | J42: 0 | K42: 0 | L42: 0 | M42: 0 | N42: 0
B43: GAUCHO FS600 2X5L BOT IN | F43: 0 | G43: 10 | H43: 0 | I43: 8 | J43: 0 | K43: 0 | L43: 0 | M43: 0 | N43: 2
B44: GAUCHO FS600 5X(20X9)ML BOT IN | F44: 0 | G44: 2900 | H44: 0 | I44: 800 | J44: 0 | K44: 0 | L44: 0 | M44: 0 | N44: 2100
B45: INFINITO SC687 5 20X500ML BOT IN | F45: 0 | G45: 40 | H45: 0 | I45: 7 | J45: 0 | K45: 0 | L45: 0 | M45: 0 | N45: 33
B46: JUMP WG80 160X(10X2GR) BAG IN | F46: 0 | G46: 3205 | H46: 0 | I46: 2800 | J46: 0 | K46: 0 | L46: 0 | M46: 0 | N46: 405
B47: LARVIN (T) WP75 20X250GR BAG IN | F47: 0 | G47: 60 | H47: 0 | I47: 20 | J47: 0 | K47: 0 | L47: 0 | M47: 0 | N47: 40
B48: LAUDIS SC630 10X57.5ML BOT IN | F48: 0 | G48: 2046 | H48: 0 | I48: 1760 | J48: 0 | K48: 0 | L48: 0 | M48: 0 | N48: 286
B49: LAUDIS SC630 8X115ML BOT IN | F49: 0 | G49: 336 | H49: 0 | I49: 353 | J49: 0 | K49: 0 | L49: 0 | M49: 0 | N49: -17
B50: LESENTA WG80 20X250GR BAG IN | F50: 0 | G50: 0 | H50: 0 | I50: 16 | J50: 0 | K50: 0 | L50: 0 | M50: 0 | N50: -16
B51: LESENTA WG80 50X100GR BAG IN | F51: 0 | G51: 0 | H51: 0 | I51: 1 | J51: 0 | K51: 0 | L51: 0 | M51: 0 | N51: -1
B52: LUCIFER (T) WP15 25X160GR BAG IN | F52: 0 | G52: 0 | H52: 0 | I52: 0 | J52: 0 | K52: 0 | L52: 0 | M52: 0 | N52: 0
B53: LUNA EXPERIENCE SC400 40X250ML BOT IN | F53: 0 | G53: 40 | H53: 0 | I53: 5 | J53: 0 | K53: 0 | L53: 0 | M53: 0 | N53: 35
B54: MELODY DUO WP66 8 10X400GR BAG IN | F54: 0 | G54: 10 | H54: 0 | I54: 8 | J54: 0 | K54: 0 | L54: 0 | M54: 0 | N54: 2
B55: MILLET 9001 (LOC) 6X4.5KG BAG IN | F55: 0 | G55: 0 | H55: 0 | I55: 0 | J55: 0 | K55: 0 | L55: 0 | M55: 0 | N55: 0
B56: MILLET HYBRID 9001 20X1.5 BAG IN | F56: 0 | G56: 15796 | H56: 0 | I56: 14440 | J56: 0 | K56: 0 | L56: 0 | M56: 0 | N56: 1356
B57: MILLET HYBRID 9444 20X1.5KG BAG IN | F57: 0 | G57: 5676 | H57: 0 | I57: 5930 | J57: 0 | K57: 0 | L57: 0 | M57: 0 | N57: -254
B58: MILLET HYBRID 9444 GOLD 20X1.50KG BAG IN | F58: 0 | G58: 0 | H58: 0 | I58: 0 | J58: 0 | K58: 0 | L58: 0 | M58: 0 | N58: 0
B59: MILLET HYBRID 9450 20X1 5KG BAG IN | F59: 0 | G59: 2418 | H59: 0 | I59: 2490 | J59: 0 | K59: 0 | L59: 0 | M59: 0 | N59: -72
B60: MILLET PA 9180 (LOC) 20X1.50KG BAG IN | F60: 0 | G60: 2549 | H60: 0 | I60: 2380 | J60: 0 | K60: 0 | L60: 0 | M60: 0 | N60: 169
B61: MOVENTO ENERGY SC240 10X1L BOT IN | F61: 20 | G61: 90 | H61: 0 | I61: 79 | J61: 0 | K61: 0 | L61: 0 | M61: 0 | N61: 31
B62: MOVENTO ENERGY SC240 40X250ML BOT IN | F62: 80 | G62: 600 | H62: 0 | I62: 216 | J62: 0 | K62: 0 | L62: 0 | M62: 0 | N62: 464
B63: MOVENTO ENERGY SC240 50X100ML BOT IN | F63: 15 | G63: 0 | H63: 0 | I63: 12 | J63: 0 | K63: 0 | L63: 0 | M63: 0 | N63: 3
B64: MUSTARD 5222 30X1KG BAG IN | F64: 0 | G64: 2191 | H64: 0 | I64: 2255 | J64: 0 | K64: 0 | L64: 0 | M64: 0 | N64: -64
B65: MUSTARD 5222 60X500G BAG IN | F65: 0 | G65: 300 | H65: 0 | I65: 300 | J65: 0 | K65: 0 | L65: 0 | M65: 0 | N65: 0
B66: MUSTARD PA 5210 (LOC) 30X1KG BAG IN | F66: 0 | G66: 955 | H66: 0 | I66: 705 | J66: 0 | K66: 0 | L66: 0 | M66: 0 | N66: 250
B67: MUSTARD PA 5232 (LOC) 30X1KG BAG IN | F67: 0 | G67: 150 | H67: 0 | I67: 60 | J67: 0 | K67: 0 | L67: 0 | M67: 0 | N67: 90
B68: NATIVO WG75 100X50GR BAG IN | F68: 75 | G68: 0 | H68: 0 | I68: 73 | J68: 0 | K68: 0 | L68: 0 | M68: 0 | N68: 2
B69: NATIVO WG75 10X1KG BAG IN | F69: 0 | G69: 10 | H69: 0 | I69: 10 | J69: 0 | K69: 0 | L69: 0 | M69: 0 | N69: 0
B70: NATIVO WG75 20X500GR BAG IN | F70: 10 | G70: 0 | H70: 0 | I70: 9 | J70: 0 | K70: 0 | L70: 0 | M70: 0 | N70: 1
B71: NATIVO WG75 40X250GR BAG IN | F71: 0 | G71: 80 | H71: 0 | I71: 28 | J71: 0 | K71: 0 | L71: 0 | M71: 0 | N71: 52
B72: NATIVO WG75 50X100GR BAG IN | F72: 0 | G72: 650 | H72: 0 | I72: 365 | J72: 0 | K72: 0 | L72: 0 | M72: 0 | N72: 285
B73: OBERON (T) SC240 20X500ML BOT IN | F73: 0 | G73: 11 | H73: 0 | I73: 11 | J73: 0 | K73: 0 | L73: 0 | M73: 0 | N73: 0
B74: OBERON (T) SC240 40X200ML BOT IN | F74: 60 | G74: 209 | H74: 0 | I74: 162 | J74: 0 | K74: 0 | L74: 0 | M74: 0 | N74: 107
B75: OBERON (T) SC240 50X100ML BOT IN | F75: 0 | G75: 350 | H75: 0 | I75: 305 | J75: 0 | K75: 0 | L75: 0 | M75: 0 | N75: 45
B76: PLANOFIX SL4 5 40X250ML BOT IN | F76: 80 | G76: 0 | H76: 0 | I76: 47 | J76: 0 | K76: 0 | L76: 0 | M76: 0 | N76: 33
B77: PLANOFIX SL4 5 50X100ML BOT IN | F77: 0 | G77: 1250 | H77: 0 | I77: 405 | J77: 0 | K77: 0 | L77: 0 | M77: 0 | N77: 845
B78: RAXIL EASY FS60 10X(20X13.4ML) BOT IN | F78: 0 | G78: 400 | H78: 0 | I78: 40 | J78: 0 | K78: 0 | L78: 0 | M78: 0 | N78: 360
B79: RAXIL EASY FS60 10X1L BOT IN | F79: 0 | G79: 100 | H79: 0 | I79: 100 | J79: 0 | K79: 0 | L79: 0 | M79: 0 | N79: 0
B80: REGENT (T) SC50 10X1L BOT IN | F80: 0 | G80: 570 | H80: 0 | I80: 475 | J80: 0 | K80: 0 | L80: 0 | M80: 0 | N80: 95
B81: REGENT (T) SC50 20X250ML BOT IN | F81: 0 | G81: 4100 | H81: 0 | I81: 3800 | J81: 0 | K81: 0 | L81: 0 | M81: 0 | N81: 300
B82: REGENT (T) SC50 20X500ML BOT IN | F82: 0 | G82: 2058 | H82: 0 | I82: 1816 | J82: 0 | K82: 0 | L82: 0 | M82: 0 | N82: 242
B83: REGENT (T) SC50 50X100ML BOT IN | F83: 0 | G83: 3800 | H83: 0 | I83: 3785 | J83: 0 | K83: 0 | L83: 0 | M83: 0 | N83: 15
B84: REGENT GOLD SC200 40X250ML BOT IN | F84: 60 | G84: 0 | H84: 0 | I84: 35 | J84: 0 | K84: 0 | L84: 0 | M84: 0 | N84: 25
B85: REGENT GOLD SC200 50X100ML BOT IN | F85: 100 | G85: 0 | H85: 0 | I85: 50 | J85: 0 | K85: 0 | L85: 0 | M85: 0 | N85: 50
B86: REGENT GR0 3 1X25KG BOX WW | F86: 0 | G86: 1000 | H86: 0 | I86: 800 | J86: 0 | K86: 0 | L86: 0 | M86: 0 | N86: 200
B87: REGENT GR0 3 20X1KG BAG IN | F87: 1000 | G87: 10620 | H87: 0 | I87: 8320 | J87: 0 | K87: 0 | L87: 0 | M87: 0 | N87: 3300
B88: REGENT ULTRA GR0 6 5X4KG BAG IN | F88: 0 | G88: 260 | H88: 0 | I88: 0 | J88: 0 | K88: 0 | L88: 0 | M88: 0 | N88: 260
B89: SECTIN WG60 10X1KG BAG IN | F89: 0 | G89: 50 | H89: 0 | I89: 48 | J89: 0 | K89: 0 | L89: 0 | M89: 0 | N89: 2
B90: SECTIN WG60 20X600GR BAG IN | F90: 0 | G90: 120 | H90: 0 | I90: 100 | J90: 0 | K90: 0 | L90: 0 | M90: 0 | N90: 20
B91: SECTIN WG60 50X100GR BAG IN | F91: 0 | G91: 0 | H91: 0 | I91: 0 | J91: 0 | K91: 0 | L91: 0 | M91: 0 | N91: 0
B92: SENCOR WP70 60X100GR BAG IN | F92: 0 | G92: 1380 | H92: 0 | I92: 1120 | J92: 0 | K92: 0 | L92: 0 | M92: 0 | N92: 260
B93: SIMBOLA (T) SG20 20X250G BOT IN | F93: 0 | G93: 20 | H93: 0 | I93: 0 | J93: 0 | K93: 0 | L93: 0 | M93: 0 | N93: 20
B94: SOLOMON OD300 10X1L BOT IN | F94: 0 | G94: 0 | H94: 0 | I94: 0 | J94: 0 | K94: 0 | L94: 0 | M94: 0 | N94: 0
B95: SOLOMON OD300 20X500ML BOT IN | F95: 0 | G95: 20 | H95: 0 | I95: 5 | J95: 0 | K95: 0 | L95: 0 | M95: 0 | N95: 15
B96: SOLOMON OD300 40X250ML BOT IN | F96: 5 | G96: 320 | H96: 0 | I96: 202 | J96: 0 | K96: 0 | L96: 0 | M96: 0 | N96: 123
B97: SOLOMON OD300 50X100ML BOT IN | F97: 0 | G97: 150 | H97: 0 | I97: 55 | J97: 0 | K97: 0 | L97: 0 | M97: 0 | N97: 95
B98: SPINTOR SC495 20X75ML BOT IN | F98: 0 | G98: 0 | H98: 0 | I98: 0 | J98: 0 | K98: 0 | L98: 0 | M98: 0 | N98: 0
B99: SUNRICE WG15 100X50GR BOT IN | F99: 0 | G99: 200 | H99: 0 | I99: 25 | J99: 0 | K99: 0 | L99: 0 | M99: 0 | N99: 175
B100: SURPASS 7172 BG2 20X450GR BAG IN | F100: 0 | G100: 1908 | H100: 0 | I100: 949 | J100: 0 | K100: 0 | L100: 0 | M100: 0 | N100: 959
B101: SURPASS 7272 BG2 (LOC) 20X450G BAG IN | F101: 0 | G101: 616 | H101: 0 | I101: 364 | J101: 0 | K101: 0 | L101: 0 | M101: 0 | N101: 252
B102: VELUM PRIME SC400 20X500ML BOT IN | F102: 0 | G102: 20 | H102: 0 | I102: 0 | J102: 0 | K102: 0 | L102: 0 | M102: 0 | N102: 20
B103: VELUM PRIME SC400 40X250ML BOT IN | F103: 1 | G103: 120 | H103: 0 | I103: 12 | J103: 0 | K103: 0 | L103: 0 | M103: 0 | N103: 109
B104: WHIPSUPER (T) EC90 40X250ML BOT IN | F104: 0 | G104: 40 | H104: 0 | I104: 5 | J104: 0 | K104: 0 | L104: 0 | M104: 0 | N104: 35
B105: Grand Total | F105: 1541 | G105: 83176 | H105: 0 | I105: 63769 | J105: 0 | K105: 0 | L105: 0 | M105: 0 | N105: 20948

Sheet Zylem SNS Report
A2: Company Name:-BAYER
A3: Stock and Sales FOR THE PERIOD 01-Apr-2020 TO 31-Mar-2021
A4: Generated on 6/5/2021 4:27:28 AM
A5: DISTRIBUTOR PRODUCTWISE
A6: OUTPUT IN : PIC,DETAILS AS : Column,CONSIDER : Voucher Date,INCLUDE VALIDATION : False
A7: DISTRIBUTOR:Alok Khad Beej Bhandar - Rewari,
A8: DISTRIBUTOR | B8: SAPCODE | C8: PRODUCT | D8: ITEMALIAS | E8: Opening Qty | F8: Purchase Qty | G8: Purchase Return Qty | H8: Sales Qty | I8: Sales Return Qty | J8: Transfer Qty | K8: Consignment Qty | L8: Adjustment Qty | M8: CLSG
A9: Alok Khad Beej Bhandar - Rewari | B9: 9067917 | C9: ADMIRE WG70 125X(8X2GR) BAG IN | D9: 6101665 | E9: 0 | F9: 160 | G9: 0 | H9: 0 | I9: 0 | J9: 0 | K9: 0 | L9: 0 | M9: 160
A10: Alok Khad Beej Bhandar - Rewari | B10: 9067917 | C10: ALIETTE WP80 20X250GR BAG IN | D10: 3822358 | E10: 0 | F10: 20 | G10: 0 | H10: 0 | I10: 0 | J10: 0 | K10: 0 | L10: 0 | M10: 20
A11: Alok Khad Beej Bhandar - Rewari | B11: 9067917 | C11: ALIETTE WP80 40X100GR BAG IN | D11: 3822331 | E11: 0 | F11: 40 | G11: 0 | H11: 0 | I11: 0 | J11: 0 | K11: 0 | L11: 0 | M11: 40
A12: Alok Khad Beej Bhandar - Rewari | B12: 9067917 | C12: AMBITION 10X1L BOT IN | D12: 86212544 | E12: 0 | F12: 250 | G12: 0 | H12: 180 | I12: 0 | J12: 0 | K12: 0 | L12: 0 | M12: 70
A13: Alok Khad Beej Bhandar - Rewari | B13: 9067917 | C13: AMBITION 40X250ML BOT IN | D13: 86232308 | E13: 0 | F13: 1400 | G13: 0 | H13: 365 | I13: 0 | J13: 0 | K13: 0 | L13: 0 | M13: 1035
A14: Alok Khad Beej Bhandar - Rewari | B14: 9067917 | C14: ANTRACOL (T) WP70 10X1KG BAG IN | D14: 6077322 | E14: 0 | F14: 490 | G14: 0 | H14: 480 | I14: 0 | J14: 0 | K14: 0 | L14: 0 | M14: 10
A15: Alok Khad Beej Bhandar - Rewari | B15: 9067917 | C15: ANTRACOL (T) WP70 20X500GR BAG IN | D15: 5999978 | E15: 0 | F15: 940 | G15: 0 | H15: 360 | I15: 0 | J15: 0 | K15: 0 | L15: 0 | M15: 580
A16: Alok Khad Beej Bhandar - Rewari | B16: 9067917 | C16: ANTRACOL (T) WP70 40X250GR BAG IN | D16: 6112179 | E16: 0 | F16: 560 | G16: 0 | H16: 240 | I16: 0 | J16: 0 | K16: 0 | L16: 0 | M16: 320
A17: Alok Khad Beej Bhandar - Rewari | B17: 9067917 | C17: ANTRACOL (T) WP70 50X100GR BAG IN | D17: 6113191 | E17: 0 | F17: 50 | G17: 0 | H17: 0 | I17: 0 | J17: 0 | K17: 0 | L17: 0 | M17: 50
A18: Alok Khad Beej Bhandar - Rewari | B18: 9067917 | C18: ATLANTIS KL3 6 15X160GR BOT IN | D18: 3822560 | E18: 0 | F18: 150 | G18: 0 | H18: 180 | I18: 0 | J18: 0 | K18: 0 | L18: 0 | M18: -30
A19: Alok Khad Beej Bhandar - Rewari | B19: 9067917 | C19: BELT EXPERT SC480 50X100ML BOT IN | D19: 79722869 | E19: 0 | F19: 50 | G19: 0 | H19: 5 | I19: 0 | J19: 0 | K19: 0 | L19: 0 | M19: 45
A20: Alok Khad Beej Bhandar - Rewari | B20: 9067917 | C20: CONFIDOR (T) SL200 10X1L BOT IN | D20: 5697343 | E20: 0 | F20: 60 | G20: 0 | H20: 20 | I20: 0 | J20: 0 | K20: 0 | L20: 0 | M20: 40
A21: Alok Khad Beej Bhandar - Rewari | B21: 9067917 | C21: CONFIDOR (T) SL200 20X250ML BOT IN | D21: 5699494 | E21: 0 | F21: 340 | G21: 0 | H21: 105 | I21: 0 | J21: 0 | K21: 0 | L21: 0 | M21: 235
A22: Alok Khad Beej Bhandar - Rewari | B22: 9067917 | C22: CONFIDOR (T) SL200 20X500ML BOT IN | D22: 5704439 | E22: 0 | F22: 220 | G22: 60 | H22: 40 | I22: 0 | J22: 0 | K22: 0 | L22: 0 | M22: 120
A23: Alok Khad Beej Bhandar - Rewari | B23: 9067917 | C23: CONFIDOR (T) SL200 50X100ML BOT IN | D23: 5703475 | E23: 0 | F23: 1510 | G23: 100 | H23: 505 | I23: 0 | J23: 0 | K23: 0 | L23: 0 | M23: 905
A24: Alok Khad Beej Bhandar - Rewari | B24: 9067917 | C24: DECIS EC 28 20X500ML BOT IN | D24: 3823370 | E24: 0 | F24: 40 | G24: 0 | H24: 0 | I24: 0 | J24: 0 | K24: 0 | L24: 0 | M24: 40
A25: Alok Khad Beej Bhandar - Rewari | B25: 9067917 | C25: DECIS EC 28 40X250ML BOT IN | D25: 3823346 | E25: 0 | F25: 40 | G25: 0 | H25: 0 | I25: 0 | J25: 0 | K25: 0 | L25: 0 | M25: 40
A26: Alok Khad Beej Bhandar - Rewari | B26: 9067917 | C26: EMESTO PRIME FS240 50X100ML BOT IN | D26: 80845774 | E26: 0 | F26: 50 | G26: 0 | H26: 0 | I26: 0 | J26: 0 | K26: 0 | L26: 0 | M26: 50
A27: Alok Khad Beej Bhandar - Rewari | B27: 9067917 | C27: EVERGOL XTEND FS308 100X40ML BOT IN | D27: 85402838 | E27: 0 | F27: 100 | G27: 0 | H27: 0 | I27: 0 | J27: 0 | K27: 0 | L27: 0 | M27: 100
A28: Alok Khad Beej Bhandar - Rewari | B28: 9067917 | C28: EVERGOL XTEND FS308 50X100ML BOT IN | D28: 84065757 | E28: 0 | F28: 50 | G28: 0 | H28: 0 | I28: 0 | J28: 0 | K28: 0 | L28: 0 | M28: 50
A29: Alok Khad Beej Bhandar - Rewari | B29: 9067917 | C29: FAME (T) SC480 20X100ML BOT IN | D29: 79266197 | E29: 5 | F29: 0 | G29: 0 | H29: 3 | I29: 0 | J29: 0 | K29: 0 | L29: 0 | M29: 2
A30: Alok Khad Beej Bhandar - Rewari | B30: 9067917 | C30: FENOS QUICK SC150 50X100ML BOT IN | D30: 80942990 | E30: 0 | F30: 50 | G30: 0 | H30: 0 | I30: 0 | J30: 0 | K30: 0 | L30: 0 | M30: 50
A31: Alok Khad Beej Bhandar - Rewari | B31: 9067917 | C31: FOLICUR (T) EC250 40X250ML BOT IN | D31: 79682271 | E31: 0 | F31: 160 | G31: 0 | H31: 105 | I31: 0 | J31: 0 | K31: 0 | L31: 0 | M31: 55
A32: Alok Khad Beej Bhandar - Rewari | B32: 9067917 | C32: FOLICUR (T) EC250 50X100ML BOT IN | D32: 79629125 | E32: 30 | F32: 50 | G32: 0 | H32: 105 | I32: 25 | J32: 0 | K32: 0 | L32: 0 | M32: 0
A33: Alok Khad Beej Bhandar - Rewari | B33: 9067917 | C33: FOOST WP50 24X500G BAG IN | D33: 85811770 | E33: 0 | F33: 3892 | G33: 0 | H33: 2272 | I33: 0 | J33: 0 | K33: 0 | L33: 0 | M33: 1620
A34: Alok Khad Beej Bhandar - Rewari | B34: 9067917 | C34: GAUCHO FS600 2X(5X1L) BOT IN | D34: 3823907 | E34: 0 | F34: 10 | G34: 0 | H34: 10 | I34: 0 | J34: 0 | K34: 0 | L34: 0 | M34: 0
A35: Alok Khad Beej Bhandar - Rewari | B35: 9067917 | C35: GAUCHO FS600 100X50ML BOT IN | D35: 80034733 | E35: 0 | F35: 1300 | G35: 0 | H35: 638 | I35: 0 | J35: 0 | K35: 0 | L35: 0 | M35: 662
A36: Alok Khad Beej Bhandar - Rewari | B36: 9067917 | C36: GAUCHO FS600 2X5L BOT IN | D36: 3823915 | E36: 0 | F36: 10 | G36: 0 | H36: 8 | I36: 0 | J36: 0 | K36: 0 | L36: 0 | M36: 2
A37: Alok Khad Beej Bhandar - Rewari | B37: 9067917 | C37: GAUCHO FS600 5X(20X9)ML BOT IN | D37: 85824333 | E37: 0 | F37: 3500 | G37: 600 | H37: 800 | I37: 0 | J37: 0 | K37: 0 | L37: 0 | M37: 2100
A38: Alok Khad Beej Bhandar - Rewari | B38: 9067917 | C38: JUMP WG80 160X(10X2GR) BAG IN | D38: 79215304 | E38: 0 | F38: 3205 | G38: 0 | H38: 2800 | I38: 0 | J38: 0 | K38: 0 | L38: 0 | M38: 405
A39: Alok Khad Beej Bhandar - Rewari | B39: 9067917 | C39: LARVIN (T) WP75 20X250GR BAG IN | D39: 6003167 | E39: 0 | F39: 60 | G39: 0 | H39: 20 | I39: 0 | J39: 0 | K39: 0 | L39: 0 | M39: 40
A40: Alok Khad Beej Bhandar - Rewari | B40: 9067917 | C40: LAUDIS SC630 10X57.5ML BOT IN | D40: 84470481 | E40: 0 | F40: 3766 | G40: 1720 | H40: 2130 | I40: 370 | J40: 0 | K40: 0 | L40: 0 | M40: 286
A41: Alok Khad Beej Bhandar - Rewari | B41: 9067917 | C41: LAUDIS SC630 8X115ML BOT IN | D41: 80491085 | E41: 0 | F41: 480 | G41: 144 | H41: 353 | I41: 0 | J41: 0 | K41: 0 | L41: 0 | M41: -17
A42: Alok Khad Beej Bhandar - Rewari | B42: 9067917 | C42: LESENTA WG80 20X250GR BAG IN | D42: 80557817 | E42: 0 | F42: 0 | G42: 0 | H42: 16 | I42: 0 | J42: 0 | K42: 0 | L42: 0 | M42: -16
A43: Alok Khad Beej Bhandar - Rewari | B43: 9067917 | C43: LESENTA WG80 50X100GR BAG IN | D43: 80503385 | E43: 0 | F43: 0 | G43: 0 | H43: 1 | I43: 0 | J43: 0 | K43: 0 | L43: 0 | M43: -1
A44: Alok Khad Beej Bhandar - Rewari | B44: 9067917 | C44: LUNA EXPERIENCE SC400 40X250ML BOT IN | D44: 80549652 | E44: 0 | F44: 40 | G44: 0 | H44: 5 | I44: 0 | J44: 0 | K44: 0 | L44: 0 | M44: 35
A45: Alok Khad Beej Bhandar - Rewari | B45: 9067917 | C45: MELODY DUO WP66 8 10X400GR BAG IN | D45: 80994974 | E45: 0 | F45: 10 | G45: 0 | H45: 8 | I45: 0 | J45: 0 | K45: 0 | L45: 0 | M45: 2
A46: Alok Khad Beej Bhandar - Rewari | B46: 9067917 | C46: MILLET HYBRID 9001 20X1.5 BAG IN | D46: 84986003 | E46: 0 | F46: 15160 | G46: 401 | H46: 14380 | I46: 160 | J46: 0 | K46: 0 | L46: 0 | M46: 539
A47: Alok Khad Beej Bhandar - Rewari | B47: 9067917 | C47: MILLET HYBRID 9444 20X1.5KG BAG IN | D47: 56000147 | E47: 0 | F47: 5648 | G47: 513 | H47: 5950 | I47: 20 | J47: 0 | K47: 0 | L47: 0 | M47: -795
A48: Alok Khad Beej Bhandar - Rewari | B48: 9067917 | C48: MILLET HYBRID 9450 20X1 5KG BAG IN | D48: 80228716 | E48: 0 | F48: 2260 | G48: 111 | H48: 2510 | I48: 20 | J48: 0 | K48: 0 | L48: 0 | M48: -341
A49: Alok Khad Beej Bhandar - Rewari | B49: 9067917 | C49: MOVENTO ENERGY SC240 10X1L BOT IN | D49: 79556837 | E49: 20 | F49: 130 | G49: 40 | H49: 79 | I49: 0 | J49: 0 | K49: 0 | L49: 0 | M49: 31
A50: Alok Khad Beej Bhandar - Rewari | B50: 9067917 | C50: MOVENTO ENERGY SC240 40X250ML BOT IN | D50: 79679505 | E50: 80 | F50: 960 | G50: 360 | H50: 216 | I50: 0 | J50: 0 | K50: 0 | L50: 0 | M50: 464
A51: Alok Khad Beej Bhandar - Rewari | B51: 9067917 | C51: MOVENTO ENERGY SC240 50X100ML BOT IN | D51: 79722605 | E51: 15 | F51: 0 | G51: 0 | H51: 12 | I51: 0 | J51: 0 | K51: 0 | L51: 0 | M51: 3
A52: Alok Khad Beej Bhandar - Rewari | B52: 9067917 | C52: MUSTARD 5222 30X1KG BAG IN | D52: 81740844 | E52: 0 | F52: 2216 | G52: 25 | H52: 2255 | I52: 0 | J52: 0 | K52: 0 | L52: 0 | M52: -64
A53: Alok Khad Beej Bhandar - Rewari | B53: 9067917 | C53: MUSTARD 5222 60X500G BAG IN | D53: 81771014 | E53: 0 | F53: 300 | G53: 0 | H53: 300 | I53: 0 | J53: 0 | K53: 0 | L53: 0 | M53: 0
A54: Alok Khad Beej Bhandar - Rewari | B54: 9067917 | C54: NATIVO WG75 100X50GR BAG IN | D54: 80580061 | E54: 75 | F54: 0 | G54: 0 | H54: 73 | I54: 0 | J54: 0 | K54: 0 | L54: 0 | M54: 2
A55: Alok Khad Beej Bhandar - Rewari | B55: 9067917 | C55: NATIVO WG75 10X1KG BAG IN | D55: 80525346 | E55: 0 | F55: 20 | G55: 10 | H55: 10 | I55: 0 | J55: 0 | K55: 0 | L55: 0 | M55: 0
A56: Alok Khad Beej Bhandar - Rewari | B56: 9067917 | C56: NATIVO WG75 20X500GR BAG IN | D56: 79198698 | E56: 10 | F56: 0 | G56: 0 | H56: 9 | I56: 0 | J56: 0 | K56: 0 | L56: 0 | M56: 1
A57: Alok Khad Beej Bhandar - Rewari | B57: 9067917 | C57: NATIVO WG75 40X250GR BAG IN | D57: 79237790 | E57: 0 | F57: 120 | G57: 40 | H57: 28 | I57: 0 | J57: 0 | K57: 0 | L57: 0 | M57: 52
A58: Alok Khad Beej Bhandar - Rewari | B58: 9067917 | C58: NATIVO WG75 50X100GR BAG IN | D58: 79304102 | E58: 0 | F58: 650 | G58: 0 | H58: 365 | I58: 0 | J58: 0 | K58: 0 | L58: 0 | M58: 285
A59: Alok Khad Beej Bhandar - Rewari | B59: 9067917 | C59: OBERON (T) SC240 20X500ML BOT IN | D59: 80026471 | E59: 0 | F59: 11 | G59: 0 | H59: 11 | I59: 0 | J59: 0 | K59: 0 | L59: 0 | M59: 0
A60: Alok Khad Beej Bhandar - Rewari | B60: 9067917 | C60: OBERON (T) SC240 40X200ML BOT IN | D60: 79971362 | E60: 60 | F60: 209 | G60: 0 | H60: 162 | I60: 0 | J60: 0 | K60: 0 | L60: 0 | M60: 107
A61: Alok Khad Beej Bhandar - Rewari | B61: 9067917 | C61: OBERON (T) SC240 50X100ML BOT IN | D61: 79998538 | E61: 0 | F61: 350 | G61: 0 | H61: 305 | I61: 0 | J61: 0 | K61: 0 | L61: 0 | M61: 45
A62: Alok Khad Beej Bhandar - Rewari | B62: 9067917 | C62: PLANOFIX SL4 5 40X250ML BOT IN | D62: 3825128 | E62: 80 | F62: 0 | G62: 0 | H62: 47 | I62: 0 | J62: 0 | K62: 0 | L62: 0 | M62: 33
A63: Alok Khad Beej Bhandar - Rewari | B63: 9067917 | C63: PLANOFIX SL4 5 50X100ML BOT IN | D63: 3825098 | E63: 0 | F63: 1250 | G63: 0 | H63: 405 | I63: 0 | J63: 0 | K63: 0 | L63: 0 | M63: 845
A64: Alok Khad Beej Bhandar - Rewari | B64: 9067917 | C64: RAXIL EASY FS60 10X1L BOT IN | D64: 80044240 | E64: 0 | F64: 100 | G64: 0 | H64: 100 | I64: 0 | J64: 0 | K64: 0 | L64: 0 | M64: 0
A65: Alok Khad Beej Bhandar - Rewari | B65: 9067917 | C65: REGENT (T) SC50 20X250ML BOT IN | D65: 5976951 | E65: 0 | F65: 4100 | G65: 0 | H65: 3800 | I65: 0 | J65: 0 | K65: 0 | L65: 0 | M65: 300
A66: Alok Khad Beej Bhandar - Rewari | B66: 9067917 | C66: REGENT (T) SC50 20X500ML BOT IN | D66: 5987678 | E66: 0 | F66: 2058 | G66: 0 | H66: 1816 | I66: 0 | J66: 0 | K66: 0 | L66: 0 | M66: 242
A67: Alok Khad Beej Bhandar - Rewari | B67: 9067917 | C67: REGENT (T) SC50 50X100ML BOT IN | D67: 5975343 | E67: 0 | F67: 3800 | G67: 0 | H67: 3785 | I67: 0 | J67: 0 | K67: 0 | L67: 0 | M67: 15
A68: Alok Khad Beej Bhandar - Rewari | B68: 9067917 | C68: REGENT GOLD SC200 40X250ML BOT IN | D68: 84126616 | E68: 60 | F68: 0 | G68: 0 | H68: 35 | I68: 0 | J68: 0 | K68: 0 | L68: 0 | M68: 25
A69: Alok Khad Beej Bhandar - Rewari | B69: 9067917 | C69: REGENT GOLD SC200 50X100ML BOT IN | D69: 84133965 | E69: 100 | F69: 0 | G69: 0 | H69: 50 | I69: 0 | J69: 0 | K69: 0 | L69: 0 | M69: 50
A70: Alok Khad Beej Bhandar - Rewari | B70: 9067917 | C70: REGENT GR0 3 1X25KG BOX WW | D70: 79384181 | E70: 0 | F70: 1000 | G70: 0 | H70: 800 | I70: 0 | J70: 0 | K70: 0 | L70: 0 | M70: 200
A71: Alok Khad Beej Bhandar - Rewari | B71: 9067917 | C71: REGENT GR0 3 20X1KG BAG IN | D71: 79667140 | E71: 1000 | F71: 10620 | G71: 0 | H71: 8320 | I71: 0 | J71: 0 | K71: 0 | L71: 0 | M71: 3300
A72: Alok Khad Beej Bhandar - Rewari | B72: 9067917 | C72: REGENT ULTRA GR0 6 5X4KG BAG IN | D72: 84093394 | E72: 0 | F72: 260 | G72: 0 | H72: 0 | I72: 0 | J72: 0 | K72: 0 | L72: 0 | M72: 260
A73: Alok Khad Beej Bhandar - Rewari | B73: 9067917 | C73: SECTIN WG60 10X1KG BAG IN | D73: 6132374 | E73: 0 | F73: 50 | G73: 0 | H73: 48 | I73: 0 | J73: 0 | K73: 0 | L73: 0 | M73: 2
A74: Alok Khad Beej Bhandar - Rewari | B74: 9067917 | C74: SENCOR WP70 60X100GR BAG IN | D74: 3825578 | E74: 0 | F74: 1380 | G74: 0 | H74: 1120 | I74: 0 | J74: 0 | K74: 0 | L74: 0 | M74: 260
A75: Alok Khad Beej Bhandar - Rewari | B75: 9067917 | C75: SIMBOLA (T) SG20 20X250G BOT IN | D75: 85758136 | E75: 0 | F75: 20 | G75: 0 | H75: 0 | I75: 0 | J75: 0 | K75: 0 | L75: 0 | M75: 20
A76: Alok Khad Beej Bhandar - Rewari | B76: 9067917 | C76: SOLOMON OD300 20X500ML BOT IN | D76: 79987870 | E76: 0 | F76: 20 | G76: 0 | H76: 5 | I76: 0 | J76: 0 | K76: 0 | L76: 0 | M76: 15
A77: Alok Khad Beej Bhandar - Rewari | B77: 9067917 | C77: SOLOMON OD300 40X250ML BOT IN | D77: 79706723 | E77: 5 | F77: 320 | G77: 0 | H77: 202 | I77: 0 | J77: 0 | K77: 0 | L77: 0 | M77: 123
A78: Alok Khad Beej Bhandar - Rewari | B78: 9067917 | C78: SOLOMON OD300 50X100ML BOT IN | D78: 79641931 | E78: 0 | F78: 150 | G78: 0 | H78: 55 | I78: 0 | J78: 0 | K78: 0 | L78: 0 | M78: 95
A79: Alok Khad Beej Bhandar - Rewari | B79: 9067917 | C79: SUNRICE WG15 100X50GR BOT IN | D79: 80219121 | E79: 0 | F79: 200 | G79: 0 | H79: 25 | I79: 0 | J79: 0 | K79: 0 | L79: 0 | M79: 175
A80: Alok Khad Beej Bhandar - Rewari | B80: 9067917 | C80: SURPASS 7272 BG2 (LOC) 20X450G BAG IN | D80: 85331000 | E80: 0 | F80: 720 | G80: 105 | H80: 364 | I80: 0 | J80: 0 | K80: 0 | L80: 0 | M80: 251
A81: Alok Khad Beej Bhandar - Rewari | B81: 9067917 | C81: VELUM PRIME SC400 20X500ML BOT IN | D81: 84407038 | E81: 0 | F81: 20 | G81: 0 | H81: 0 | I81: 0 | J81: 0 | K81: 0 | L81: 0 | M81: 20
A82: Alok Khad Beej Bhandar - Rewari | B82: 9067917 | C82: VELUM PRIME SC400 40X250ML BOT IN | D82: 84474886 | E82: 1 | F82: 120 | G82: 0 | H82: 12 | I82: 0 | J82: 0 | K82: 0 | L82: 0 | M82: 109
A83: Alok Khad Beej Bhandar - Rewari | B83: 9067917 | C83: WHIPSUPER (T) EC90 40X250ML BOT IN | D83: 5966131 | E83: 0 | F83: 40 | G83: 0 | H83: 5 | I83: 0 | J83: 0 | K83: 0 | L83: 0 | M83: 35
A84: Alok Khad Beej Bhandar - Rewari | B84: 9067917 | C84: SURPASS 7172 BG2 20X450GR BAG IN | D84: 84456071 | E84: 0 | F84: 2281 | G84: 497 | H84: 940 | I84: 11 | J84: 0 | K84: 0 | L84: 0 | M84: 855
A85: Alok Khad Beej Bhandar - Rewari | B85: 9067917 | C85: NEWPRODUCT_9067917 | D85: 9067917 | E85: 0 | F85: 610 | G85: 0 | H85: 482 | I85: 0 | J85: 0 | K85: 0 | L85: 0 | M85: 128
A86: Alok Khad Beej Bhandar - Rewari | B86: 9067917 | C86: DECIS EC101-2 50X100ML BOX IN | D86: 6103692 | E86: 0 | F86: 0 | G86: 0 | H86: 10 | I86: 0 | J86: 0 | K86: 0 | L86: 0 | M86: -10
A87: Alok Khad Beej Bhandar - Rewari | B87: 9067917 | C87: MILLET PA 9180 (LOC) 20X1.50KG BAG IN | D87: 86706040 | E87: 0 | F87: 4280 | G87: 2039 | H87: 2460 | I87: 80 | J87: 0 | K87: 0 | L87: 0 | M87: -139
A88: Alok Khad Beej Bhandar - Rewari | B88: 9067917 | C88: MUSTARD PA 5210 (LOC) 30X1KG BAG IN | D88: 86195089 | E88: 0 | F88: 1025 | G88: 248 | H88: 695 | I88: 0 | J88: 0 | K88: 0 | L88: 0 | M88: 82
A89: Alok Khad Beej Bhandar - Rewari | B89: 9067917 | C89: MUSTARD PA 5232 (LOC) 30X1KG BAG IN | D89: 86735628 | E89: 0 | F89: 150 | G89: 0 | H89: 60 | I89: 0 | J89: 0 | K89: 0 | L89: 0 | M89: 90
A90: Alok Khad Beej Bhandar - Rewari | B90: 9067917 | C90: RAXIL EASY FS60 10X(20X13.4ML) BOT IN | D90: 84911186 | E90: 0 | F90: 600 | G90: 200 | H90: 40 | I90: 0 | J90: 0 | K90: 0 | L90: 0 | M90: 360
A91: Alok Khad Beej Bhandar - Rewari | B91: 9067917 | C91: SECTIN WG60 20X600GR BAG IN | D91: 6000664 | E91: 0 | F91: 120 | G91: 0 | H91: 100 | I91: 0 | J91: 0 | K91: 0 | L91: 0 | M91: 20
A92: Alok Khad Beej Bhandar - Rewari | B92: 9067917 | C92: BUONOS SC430 40X250ML BOT IN | D92: 86224801 | E92: 0 | F92: 80 | G92: 0 | H92: 5 | I92: 0 | J92: 0 | K92: 0 | L92: 0 | M92: 75
A93: Alok Khad Beej Bhandar - Rewari | B93: 9067917 | C93: BUONOS SC430 20X500ML BOT IN | D93: 86254468 | E93: 0 | F93: 20 | G93: 0 | H93: 0 | I93: 0 | J93: 0 | K93: 0 | L93: 0 | M93: 20
A94: GRANDTOTAL | E94: 1541 | F94: 86481 | G94: 7213 | H94: 64205 | I94: 686 | J94: 0 | K94: 0 | L94: 0 | M94: 17290

Sheet OPG
A1: ADMIRE WG70 125X(8X2GR) BAG IN | B1: =VLOOKUP(A1,'[2]Product Master Sheet'!$B$2:$F$506,5,0) -> 16 | C1: 0
A2: ALIETTE WP80 20X250GR BAG IN | B2: =VLOOKUP(A2,'[2]Product Master Sheet'!$B$2:$F$506,5,0) -> 33 | C2: 0
A3: ALIETTE WP80 40X100GR BAG IN | B3: =VLOOKUP(A3,'[2]Product Master Sheet'!$B$2:$F$506,5,0) -> 35 | C3: 0
A4: AMBITION 10X1L BOT IN | B4: =VLOOKUP(A4,'[2]Product Master Sheet'!$B$2:$F$506,5,0) -> 39 | C4: 0
A5: AMBITION 40X250ML BOT IN | B5: =VLOOKUP(A5,'[2]Product Master Sheet'!$B$2:$F$506,5,0) -> 41 | C5: 0
A6: ANTRACOL (T) WP70 10X1KG BAG IN | B6: =VLOOKUP(A6,'[2]Product Master Sheet'!$B$2:$F$506,5,0) -> 42 | C6: 0
A7: ANTRACOL (T) WP70 20X500GR BAG IN | B7: =VLOOKUP(A7,'[2]Product Master Sheet'!$B$2:$F$506,5,0) -> 43 | C7: 0
A8: ANTRACOL (T) WP70 40X250GR BAG IN | B8: =VLOOKUP(A8,'[2]Product Master Sheet'!$B$2:$F$506,5,0) -> 44 | C8: 0
A9: ANTRACOL (T) WP70 50X100GR BAG IN | B9: =VLOOKUP(A9,'[2]Product Master Sheet'!$B$2:$F$506,5,0) -> 45 | C9: 0
A10: ATLANTIS KL3 6 15X160GR BOT IN | B10: =VLOOKUP(A10,'[2]Product Master Sheet'!$B$2:$F$506,5,0) -> 103 | C10: 0
A11: BELT EXPERT SC480 50X100ML BOT IN | B11: =VLOOKUP(A11,'[2]Product Master Sheet'!$B$2:$F$506,5,0) -> 111 | C11: 0
A12: CONFIDOR (T) SL200 10X1L BOT IN | B12: =VLOOKUP(A12,'[2]Product Master Sheet'!$B$2:$F$506,5,0) -> 113 | C12: 0
A13: CONFIDOR (T) SL200 20X250ML BOT IN | B13: =VLOOKUP(A13,'[2]Product Master Sheet'!$B$2:$F$506,5,0) -> 114 | C13: 0
A14: CONFIDOR (T) SL200 20X500ML BOT IN | B14: =VLOOKUP(A14,'[2]Product Master Sheet'!$B$2:$F$506,5,0) -> 115 | C14: 0
A15: CONFIDOR (T) SL200 50X100ML BOT IN | B15: =VLOOKUP(A15,'[2]Product Master Sheet'!$B$2:$F$506,5,0) -> 116 | C15: 0
A16: DECIS EC 28 20X500ML BOT IN | B16: =VLOOKUP(A16,'[2]Product Master Sheet'!$B$2:$F$506,5,0) -> 125 | C16: 0
A17: DECIS EC 28 40X250ML BOT IN | B17: =VLOOKUP(A17,'[2]Product Master Sheet'!$B$2:$F$506,5,0) -> 126 | C17: 0
A18: EMESTO PRIME FS240 50X100ML BOT IN | B18: =VLOOKUP(A18,'[2]Product Master Sheet'!$B$2:$F$506,5,0) -> 135 | C18: 0
A19: EVERGOL XTEND FS308 100X40ML BOT IN | B19: =VLOOKUP(A19,'[2]Product Master Sheet'!$B$2:$F$506,5,0) -> 139 | C19: 0
A20: EVERGOL XTEND FS308 50X100ML BOT IN | B20: =VLOOKUP(A20,'[2]Product Master Sheet'!$B$2:$F$506,5,0) -> 143 | C20: 0
A21: FAME (T) SC480 20X100ML BOT IN | B21: =VLOOKUP(A21,'[2]Product Master Sheet'!$B$2:$F$506,5,0) -> 145 | C21: 5
A22: FENOS QUICK SC150 50X100ML BOT IN | B22: =VLOOKUP(A22,'[2]Product Master Sheet'!$B$2:$F$506,5,0) -> 152 | C22: 0
A23: FOLICUR (T) EC250 40X250ML BOT IN | B23: =VLOOKUP(A23,'[2]Product Master Sheet'!$B$2:$F$506,5,0) -> 164 | C23: 0
A24: FOLICUR (T) EC250 50X100ML BOT IN | B24: =VLOOKUP(A24,'[2]Product Master Sheet'!$B$2:$F$506,5,0) -> 165 | C24: 30
A25: FOOST WP50 24X500G BAG IN | B25: =VLOOKUP(A25,'[2]Product Master Sheet'!$B$2:$F$506,5,0) -> 177 | C25: 0
A26: GAUCHO FS600 2X(5X1L) BOT IN | B26: =VLOOKUP(A26,'[2]Product Master Sheet'!$B$2:$F$506,5,0) -> 178 | C26: 0
A27: GAUCHO FS600 100X50ML BOT IN | B27: =VLOOKUP(A27,'[2]Product Master Sheet'!$B$2:$F$506,5,0) -> 179 | C27: 0
A28: GAUCHO FS600 2X5L BOT IN | B28: =VLOOKUP(A28,'[2]Product Master Sheet'!$B$2:$F$506,5,0) -> 180 | C28: 0
A29: GAUCHO FS600 5X(20X9)ML BOT IN | B29: =VLOOKUP(A29,'[2]Product Master Sheet'!$B$2:$F$506,5,0) -> 183 | C29: 0
A30: JUMP WG80 160X(10X2GR) BAG IN | B30: =VLOOKUP(A30,'[2]Product Master Sheet'!$B$2:$F$506,5,0) -> 199 | C30: 0
A31: LARVIN (T) WP75 20X250GR BAG IN | B31: =VLOOKUP(A31,'[2]Product Master Sheet'!$B$2:$F$506,5,0) -> 205 | C31: 0
A32: LAUDIS SC630 10X57.5ML BOT IN | B32: =VLOOKUP(A32,'[2]Product Master Sheet'!$B$2:$F$506,5,0) -> 210 | C32: 0
A33: LAUDIS SC630 8X115ML BOT IN | B33: =VLOOKUP(A33,'[2]Product Master Sheet'!$B$2:$F$506,5,0) -> 212 | C33: 0
A34: LESENTA WG80 20X250GR BAG IN | B34: =VLOOKUP(A34,'[2]Product Master Sheet'!$B$2:$F$506,5,0) -> 217 | C34: 0
A35: LESENTA WG80 50X100GR BAG IN | B35: =VLOOKUP(A35,'[2]Product Master Sheet'!$B$2:$F$506,5,0) -> 219 | C35: 0
A36: LUNA EXPERIENCE SC400 40X250ML BOT IN | B36: =VLOOKUP(A36,'[2]Product Master Sheet'!$B$2:$F$506,5,0) -> 225 | C36: 0
A37: MELODY DUO WP66 8 10X400GR BAG IN | B37: =VLOOKUP(A37,'[2]Product Master Sheet'!$B$2:$F$506,5,0) -> 228 | C37: 0
A38: MILLET HYBRID 9001 20X1.5 BAG IN | B38: =VLOOKUP(A38,'[2]Product Master Sheet'!$B$2:$F$506,5,0) -> 236 | C38: 0
A39: MILLET HYBRID 9444 20X1.5KG BAG IN | B39: =VLOOKUP(A39,'[2]Product Master Sheet'!$B$2:$F$506,5,0) -> 243 | C39: 0
A40: MILLET HYBRID 9450 20X1 5KG BAG IN | B40: =VLOOKUP(A40,'[2]Product Master Sheet'!$B$2:$F$506,5,0) -> 251 | C40: 0
A41: MOVENTO ENERGY SC240 10X1L BOT IN | B41: =VLOOKUP(A41,'[2]Product Master Sheet'!$B$2:$F$506,5,0) -> 271 | C41: 20
A42: MOVENTO ENERGY SC240 40X250ML BOT IN | B42: =VLOOKUP(A42,'[2]Product Master Sheet'!$B$2:$F$506,5,0) -> 273 | C42: 80
A43: MOVENTO ENERGY SC240 50X100ML BOT IN | B43: =VLOOKUP(A43,'[2]Product Master Sheet'!$B$2:$F$506,5,0) -> 274 | C43: 15
A44: MUSTARD 5222 30X1KG BAG IN | B44: =VLOOKUP(A44,'[2]Product Master Sheet'!$B$2:$F$506,5,0) -> 278 | C44: 0
A45: MUSTARD 5222 60X500G BAG IN | B45: =VLOOKUP(A45,'[2]Product Master Sheet'!$B$2:$F$506,5,0) -> 279 | C45: 0
A46: NATIVO WG75 100X50GR BAG IN | B46: =VLOOKUP(A46,'[2]Product Master Sheet'!$B$2:$F$506,5,0) -> 289 | C46: 75
A47: NATIVO WG75 10X1KG BAG IN | B47: =VLOOKUP(A47,'[2]Product Master Sheet'!$B$2:$F$506,5,0) -> 290 | C47: 0
A48: NATIVO WG75 20X500GR BAG IN | B48: =VLOOKUP(A48,'[2]Product Master Sheet'!$B$2:$F$506,5,0) -> 292 | C48: 10
A49: NATIVO WG75 40X250GR BAG IN | B49: =VLOOKUP(A49,'[2]Product Master Sheet'!$B$2:$F$506,5,0) -> 293 | C49: 0
A50: NATIVO WG75 50X100GR BAG IN | B50: =VLOOKUP(A50,'[2]Product Master Sheet'!$B$2:$F$506,5,0) -> 294 | C50: 0
A51: OBERON (T) SC240 20X500ML BOT IN | B51: =VLOOKUP(A51,'[2]Product Master Sheet'!$B$2:$F$506,5,0) -> 297 | C51: 0
A52: OBERON (T) SC240 40X200ML BOT IN | B52: =VLOOKUP(A52,'[2]Product Master Sheet'!$B$2:$F$506,5,0) -> 299 | C52: 60
A53: OBERON (T) SC240 50X100ML BOT IN | B53: =VLOOKUP(A53,'[2]Product Master Sheet'!$B$2:$F$506,5,0) -> 300 | C53: 0
A54: PLANOFIX SL4 5 40X250ML BOT IN | B54: =VLOOKUP(A54,'[2]Product Master Sheet'!$B$2:$F$506,5,0) -> 306 | C54: 80
A55: PLANOFIX SL4 5 50X100ML BOT IN | B55: =VLOOKUP(A55,'[2]Product Master Sheet'!$B$2:$F$506,5,0) -> 307 | C55: 0
A56: RAXIL EASY FS60 10X1L BOT IN | B56: =VLOOKUP(A56,'[2]Product Master Sheet'!$B$2:$F$506,5,0) -> 321 | C56: 0
A57: REGENT (T) SC50 20X250ML BOT IN | B57: =VLOOKUP(A57,'[2]Product Master Sheet'!$B$2:$F$506,5,0) -> 325 | C57: 0
A58: REGENT (T) SC50 20X500ML BOT IN | B58: =VLOOKUP(A58,'[2]Product Master Sheet'!$B$2:$F$506,5,0) -> 326 | C58: 0
A59: REGENT (T) SC50 50X100ML BOT IN | B59: =VLOOKUP(A59,'[2]Product Master Sheet'!$B$2:$F$506,5,0) -> 327 | C59: 0
A60: REGENT GOLD SC200 40X250ML BOT IN | B60: =VLOOKUP(A60,'[2]Product Master Sheet'!$B$2:$F$506,5,0) -> 331 | C60: 60
A61: REGENT GOLD SC200 50X100ML BOT IN | B61: =VLOOKUP(A61,'[2]Product Master Sheet'!$B$2:$F$506,5,0) -> 332 | C61: 100
A62: REGENT GR0 3 1X25KG BOX WW | B62: =VLOOKUP(A62,'[2]Product Master Sheet'!$B$2:$F$506,5,0) -> 333 | C62: 0
A63: REGENT GR0 3 20X1KG BAG IN | B63: =VLOOKUP(A63,'[2]Product Master Sheet'!$B$2:$F$506,5,0) -> 335 | C63: 1000
A64: REGENT ULTRA GR0 6 5X4KG BAG IN | B64: =VLOOKUP(A64,'[2]Product Master Sheet'!$B$2:$F$506,5,0) -> 339 | C64: 0
A65: SECTIN WG60 10X1KG BAG IN | B65: =VLOOKUP(A65,'[2]Product Master Sheet'!$B$2:$F$506,5,0) -> 344 | C65: 0
A66: SENCOR WP70 60X100GR BAG IN | B66: =VLOOKUP(A66,'[2]Product Master Sheet'!$B$2:$F$506,5,0) -> 353 | C66: 0
A67: SIMBOLA (T) SG20 20X250G BOT IN | B67: =VLOOKUP(A67,'[2]Product Master Sheet'!$B$2:$F$506,5,0) -> 356 | C67: 0
A68: SOLOMON OD300 20X500ML BOT IN | B68: =VLOOKUP(A68,'[2]Product Master Sheet'!$B$2:$F$506,5,0) -> 366 | C68: 0
A69: SOLOMON OD300 40X250ML BOT IN | B69: =VLOOKUP(A69,'[2]Product Master Sheet'!$B$2:$F$506,5,0) -> 368 | C69: 5
A70: SOLOMON OD300 50X100ML BOT IN | B70: =VLOOKUP(A70,'[2]Product Master Sheet'!$B$2:$F$506,5,0) -> 370 | C70: 0
A71: SUNRICE WG15 100X50GR BOT IN | B71: =VLOOKUP(A71,'[2]Product Master Sheet'!$B$2:$F$506,5,0) -> 374 | C71: 0
A72: SURPASS 7272 BG2 (LOC) 20X450G BAG IN | B72: =VLOOKUP(A72,'[2]Product Master Sheet'!$B$2:$F$506,5,0) -> 383 | C72: 0
A73: VELUM PRIME SC400 20X500ML BOT IN | B73: =VLOOKUP(A73,'[2]Product Master Sheet'!$B$2:$F$506,5,0) -> 400 | C73: 0
A74: VELUM PRIME SC400 40X250ML BOT IN | B74: =VLOOKUP(A74,'[2]Product Master Sheet'!$B$2:$F$506,5,0) -> 401 | C74: 1
A75: WHIPSUPER (T) EC90 40X250ML BOT IN | B75: =VLOOKUP(A75,'[2]Product Master Sheet'!$B$2:$F$506,5,0) -> 405 | C75: 0
A76: SURPASS 7172 BG2 20X450GR BAG IN | B76: =VLOOKUP(A76,'[2]Product Master Sheet'!$B$2:$F$506,5,0) -> 382 | C76: 0
A77: DECIS EC101-2 50X100ML BOX IN | B77: =VLOOKUP(A77,'[2]Product Master Sheet'!$B$2:$F$506,5,0) -> 924 | C77: 0
A78: MILLET PA 9180 (LOC) 20X1.50KG BAG IN | B78: =VLOOKUP(A78,'[2]Product Master Sheet'!$B$2:$F$506,5,0) -> 915 | C78: 0
A79: MUSTARD PA 5210 (LOC) 30X1KG BAG IN | B79: =VLOOKUP(A79,'[2]Product Master Sheet'!$B$2:$F$506,5,0) -> 911 | C79: 0
A80: MUSTARD PA 5232 (LOC) 30X1KG BAG IN | B80: =VLOOKUP(A80,'[2]Product Master Sheet'!$B$2:$F$506,5,0) -> 913 | C80: 0
A81: RAXIL EASY FS60 10X(20X13.4ML) BOT IN | B81: =VLOOKUP(A81,'[2]Product Master Sheet'!$B$2:$F$506,5,0) -> 320 | C81: 0
A82: SECTIN WG60 20X600GR BAG IN | B82: =VLOOKUP(A82,'[2]Product Master Sheet'!$B$2:$F$506,5,0) -> 345 | C82: 0
A83: BUONOS SC430 40X250ML BOT IN | B83: =VLOOKUP(A83,'[2]Product Master Sheet'!$B$2:$F$506,5,0) -> 1397 | C83: 0
A84: BUONOS SC430 20X500ML BOT IN | B84: =VLOOKUP(A84,'[2]Product Master Sheet'!$B$2:$F$506,5,0) -> 1396 | C84: 0
A85: ADUE WG70 15X40G BOT IN | B85: =VLOOKUP(A85,'[2]Product Master Sheet'!$B$2:$F$506,5,0) -> 24 | C85: 0
A86: ALANTO (T) SC240 40X250ML BOT IN | B86: =VLOOKUP(A86,'[2]Product Master Sheet'!$B$2:$F$506,5,0) -> 29 | C86: 0
A87: ALANTO (T) SC240 50X100ML BOT IN | B87: =VLOOKUP(A87,'[2]Product Master Sheet'!$B$2:$F$506,5,0) -> 30 | C87: 0
A88: CONFIDOR (T) SL200 100X50ML BOT IN | B88: =VLOOKUP(A88,'[2]Product Master Sheet'!$B$2:$F$506,5,0) -> 112 | C88: 0
A89: CONFIDOR SUPER (T) SC350 50X100ML BOT IN | B89: =VLOOKUP(A89,'[2]Product Master Sheet'!$B$2:$F$506,5,0) -> 120 | C89: 0
A90: CONFIDOR SUPER (T) SC350 50X50ML BOT IN | B90: =VLOOKUP(A90,'[2]Product Master Sheet'!$B$2:$F$506,5,0) -> 121 | C90: 0
A91: DECIS EC 28 10X1L BOT IN | B91: =VLOOKUP(A91,'[2]Product Master Sheet'!$B$2:$F$506,5,0) -> 124 | C91: 0
A92: FAME (T) SC480 40X50ML BOT IN | B92: =VLOOKUP(A92,'[2]Product Master Sheet'!$B$2:$F$506,5,0) -> 146 | C92: 0
A93: FOLICUR (T) EC250 20X500ML BOT IN | B93: =VLOOKUP(A93,'[2]Product Master Sheet'!$B$2:$F$506,5,0) -> 163 | C93: 0
A94: INFINITO SC687 5 20X500ML BOT IN | B94: =VLOOKUP(A94,'[2]Product Master Sheet'!$B$2:$F$506,5,0) -> 195 | C94: 0
A95: LUCIFER (T) WP15 25X160GR BAG IN | B95: =VLOOKUP(A95,'[2]Product Master Sheet'!$B$2:$F$506,5,0) -> 221 | C95: 0
A96: MILLET 9001 (LOC) 6X4.5KG BAG IN | B96: =VLOOKUP(A96,'[2]Product Master Sheet'!$B$2:$F$506,5,0) -> 918 | C96: 0
A97: MILLET HYBRID 9444 GOLD 20X1.50KG BAG IN | B97: =VLOOKUP(A97,'[2]Product Master Sheet'!$B$2:$F$506,5,0) -> 248 | C97: 0
A98: REGENT (T) SC50 10X1L BOT IN | B98: =VLOOKUP(A98,'[2]Product Master Sheet'!$B$2:$F$506,5,0) -> 324 | C98: 0
A99: SECTIN WG60 50X100GR BAG IN | B99: =VLOOKUP(A99,'[2]Product Master Sheet'!$B$2:$F$506,5,0) -> 346 | C99: 0
A100: SOLOMON OD300 10X1L BOT IN | B100: =VLOOKUP(A100,'[2]Product Master Sheet'!$B$2:$F$506,5,0) -> 365 | C100: 0
A101: SPINTOR SC495 20X75ML BOT IN | B101: =VLOOKUP(A101,'[2]Product Master Sheet'!$B$2:$F$506,5,0) -> 373 | C101: 0

Sheet Reco
B1: Zylem Report -01-Apr-2020 TO 31-Mar-2021 | K1: Dealer Report -01-Apr-2020 TO 31-Mar-2021 | T1: Difference (+/-)
A3: DEALER CODE | B3: Opening Qty | C3: Purchase Qty | D3: Purchase Return Qty | E3: Sales Qty | F3: Sales Return Qty | G3: Transfer Qty | H3: Consignment Qty | I3: Adjustment Qty | J3: CLSG | K3: Opening Qty | L3: Purchase Qty | M3: Purchase Return Qty | N3: Sales Qty | O3: Sales Return Qty | P3: Transfer Qty | Q3: Consignment Qty | R3: Adjustment Qty | S3: CLSG | T3: Opening Stock Qty | U3: Purchase Qty | V3: Purchase Return Qty | W3: Sales Qty | X3: Sales Return Qty | Y3: Transfer Qty | Z3: Consignment Qty | AA3: Adjustments Qty | AB3: CLSG | AC3: Remark
A4: ADMIRE WG70 125X(8X2GR) BAG IN | B4: 0 | C4: 160 | D4: 0 | E4: 0 | F4: 0 | G4: 0 | H4: 0 | I4: 0 | J4: 160 | K4: 0 | L4: 160 | M4: 0 | N4: 0 | O4: 0 | P4: 0 | Q4: 0 | R4: 0 | S4: 160 | T4: 0 | U4: 0 | V4: 0 | W4: 0 | X4: 0 | Y4: 0 | Z4: 0 | AA4: 0 | AB4: 0 | AC4: Ok
A5: ALIETTE WP80 20X250GR BAG IN | B5: 0 | C5: 20 | D5: 0 | E5: 0 | F5: 0 | G5: 0 | H5: 0 | I5: 0 | J5: 20 | K5: 0 | L5: 20 | M5: 0 | N5: 0 | O5: 0 | P5: 0 | Q5: 0 | R5: 0 | S5: 20 | T5: 0 | U5: 0 | V5: 0 | W5: 0 | X5: 0 | Y5: 0 | Z5: 0 | AA5: 0 | AB5: 0 | AC5: Ok
A6: ALIETTE WP80 40X100GR BAG IN | B6: 0 | C6: 40 | D6: 0 | E6: 0 | F6: 0 | G6: 0 | H6: 0 | I6: 0 | J6: 40 | K6: 0 | L6: 40 | M6: 0 | N6: 0 | O6: 0 | P6: 0 | Q6: 0 | R6: 0 | S6: 40 | T6: 0 | U6: 0 | V6: 0 | W6: 0 | X6: 0 | Y6: 0 | Z6: 0 | AA6: 0 | AB6: 0 | AC6: Ok
A7: AMBITION 10X1L BOT IN | B7: 0 | C7: 250 | D7: 0 | E7: 180 | F7: 0 | G7: 0 | H7: 0 | I7: 0 | J7: 70 | K7: 0 | L7: 250 | M7: 0 | N7: 180 | O7: 0 | P7: 0 | Q7: 0 | R7: 0 | S7: 70 | T7: 0 | U7: 0 | V7: 0 | W7: 0 | X7: 0 | Y7: 0 | Z7: 0 | AA7: 0 | AB7: 0 | AC7: Ok
A8: AMBITION 40X250ML BOT IN | B8: 0 | C8: 1400 | D8: 0 | E8: 365 | F8: 0 | G8: 0 | H8: 0 | I8: 0 | J8: 1035 | K8: 0 | L8: 1400 | M8: 0 | N8: 365 | O8: 0 | P8: 0 | Q8: 0 | R8: 0 | S8: 1035 | T8: 0 | U8: 0 | V8: 0 | W8: 0 | X8: 0 | Y8: 0 | Z8: 0 | AA8: 0 | AB8: 0 | AC8: Ok
A9: ANTRACOL (T) WP70 10X1KG BAG IN | B9: 0 | C9: 490 | D9: 0 | E9: 480 | F9: 0 | G9: 0 | H9: 0 | I9: 0 | J9: 10 | K9: 0 | L9: 490 | M9: 0 | N9: 480 | O9: 0 | P9: 0 | Q9: 0 | R9: 0 | S9: 10 | T9: 0 | U9: 0 | V9: 0 | W9: 0 | X9: 0 | Y9: 0 | Z9: 0 | AA9: 0 | AB9: 0 | AC9: Ok
A10: ANTRACOL (T) WP70 20X500GR BAG IN | B10: 0 | C10: 940 | D10: 0 | E10: 360 | F10: 0 | G10: 0 | H10: 0 | I10: 0 | J10: 580 | K10: 0 | L10: 940 | M10: 0 | N10: 360 | O10: 0 | P10: 0 | Q10: 0 | R10: 0 | S10: 580 | T10: 0 | U10: 0 | V10: 0 | W10: 0 | X10: 0 | Y10: 0 | Z10: 0 | AA10: 0 | AB10: 0 | AC10: Ok
A11: ANTRACOL (T) WP70 40X250GR BAG IN | B11: 0 | C11: 560 | D11: 0 | E11: 240 | F11: 0 | G11: 0 | H11: 0 | I11: 0 | J11: 320 | K11: 0 | L11: 560 | M11: 0 | N11: 240 | O11: 0 | P11: 0 | Q11: 0 | R11: 0 | S11: 320 | T11: 0 | U11: 0 | V11: 0 | W11: 0 | X11: 0 | Y11: 0 | Z11: 0 | AA11: 0 | AB11: 0 | AC11: Ok
A12: ANTRACOL (T) WP70 50X100GR BAG IN | B12: 0 | C12: 50 | D12: 0 | E12: 0 | F12: 0 | G12: 0 | H12: 0 | I12: 0 | J12: 50 | K12: 0 | L12: 50 | M12: 0 | N12: 0 | O12: 0 | P12: 0 | Q12: 0 | R12: 0 | S12: 50 | T12: 0 | U12: 0 | V12: 0 | W12: 0 | X12: 0 | Y12: 0 | Z12: 0 | AA12: 0 | AB12: 0 | AC12: Ok
A13: ATLANTIS KL3 6 15X160GR BOT IN | B13: 0 | C13: 150 | D13: 0 | E13: 180 | F13: 0 | G13: 0 | H13: 0 | I13: 0 | J13: -30 | K13: 0 | L13: 180 | M13: 0 | N13: 180 | O13: 0 | P13: 0 | Q13: 0 | R13: 0 | S13: 0 | T13: 0 | U13: -30 | V13: 0 | W13: 0 | X13: 0 | Y13: 0 | Z13: 0 | AA13: 0 | AB13: -30 | AC13: DIFF DUE TO JOURNAL ENTRY
A14: BELT EXPERT SC480 50X100ML BOT IN | B14: 0 | C14: 50 | D14: 0 | E14: 5 | F14: 0 | G14: 0 | H14: 0 | I14: 0 | J14: 45 | K14: 0 | L14: 50 | M14: 0 | N14: 5 | O14: 0 | P14: 0 | Q14: 0 | R14: 0 | S14: 45 | T14: 0 | U14: 0 | V14: 0 | W14: 0 | X14: 0 | Y14: 0 | Z14: 0 | AA14: 0 | AB14: 0 | AC14: Ok
A15: CONFIDOR (T) SL200 10X1L BOT IN | B15: 0 | C15: 60 | D15: 0 | E15: 20 | F15: 0 | G15: 0 | H15: 0 | I15: 0 | J15: 40 | K15: 0 | L15: 60 | M15: 0 | N15: 20 | O15: 0 | P15: 0 | Q15: 0 | R15: 0 | S15: 40 | T15: 0 | U15: 0 | V15: 0 | W15: 0 | X15: 0 | Y15: 0 | Z15: 0 | AA15: 0 | AB15: 0 | AC15: Ok
A16: CONFIDOR (T) SL200 20X250ML BOT IN | B16: 0 | C16: 340 | D16: 0 | E16: 105 | F16: 0 | G16: 0 | H16: 0 | I16: 0 | J16: 235 | K16: 0 | L16: 360 | M16: 0 | N16: 105 | O16: 0 | P16: 0 | Q16: 0 | R16: 0 | S16: 255 | T16: 0 | U16: -20 | V16: 0 | W16: 0 | X16: 0 | Y16: 0 | Z16: 0 | AA16: 0 | AB16: -20 | AC16: DIFF DUE TO JOURNAL ENTRY
A17: CONFIDOR (T) SL200 20X500ML BOT IN | B17: 0 | C17: 220 | D17: 60 | E17: 40 | F17: 0 | G17: 0 | H17: 0 | I17: 0 | J17: 120 | K17: 0 | L17: 160 | M17: 0 | N17: 40 | O17: 0 | P17: 0 | Q17: 0 | R17: 0 | S17: 120 | T17: 0 | U17: 60 | V17: 60 | W17: 0 | X17: 0 | Y17: 0 | Z17: 0 | AA17: 0 | AB17: 0 | AC17: Ok
A18: CONFIDOR (T) SL200 50X100ML BOT IN | B18: 0 | C18: 1510 | D18: 100 | E18: 505 | F18: 0 | G18: 0 | H18: 0 | I18: 0 | J18: 905 | K18: 0 | L18: 1410 | M18: 0 | N18: 505 | O18: 0 | P18: 0 | Q18: 0 | R18: 0 | S18: 905 | T18: 0 | U18: 100 | V18: 100 | W18: 0 | X18: 0 | Y18: 0 | Z18: 0 | AA18: 0 | AB18: 0 | AC18: Ok
A19: DECIS EC 28 20X500ML BOT IN | B19: 0 | C19: 40 | D19: 0 | E19: 0 | F19: 0 | G19: 0 | H19: 0 | I19: 0 | J19: 40 | K19: 0 | L19: 40 | M19: 0 | N19: 0 | O19: 0 | P19: 0 | Q19: 0 | R19: 0 | S19: 40 | T19: 0 | U19: 0 | V19: 0 | W19: 0 | X19: 0 | Y19: 0 | Z19: 0 | AA19: 0 | AB19: 0 | AC19: Ok
A20: DECIS EC 28 40X250ML BOT IN | B20: 0 | C20: 40 | D20: 0 | E20: 0 | F20: 0 | G20: 0 | H20: 0 | I20: 0 | J20: 40 | K20: 0 | L20: 40 | M20: 0 | N20: 0 | O20: 0 | P20: 0 | Q20: 0 | R20: 0 | S20: 40 | T20: 0 | U20: 0 | V20: 0 | W20: 0 | X20: 0 | Y20: 0 | Z20: 0 | AA20: 0 | AB20: 0 | AC20: Ok
A21: EMESTO PRIME FS240 50X100ML BOT IN | B21: 0 | C21: 50 | D21: 0 | E21: 0 | F21: 0 | G21: 0 | H21: 0 | I21: 0 | J21: 50 | K21: 0 | L21: 50 | M21: 0 | N21: 0 | O21: 0 | P21: 0 | Q21: 0 | R21: 0 | S21: 50 | T21: 0 | U21: 0 | V21: 0 | W21: 0 | X21: 0 | Y21: 0 | Z21: 0 | AA21: 0 | AB21: 0 | AC21: Ok
A22: EVERGOL XTEND FS308 100X40ML BOT IN | B22: 0 | C22: 100 | D22: 0 | E22: 0 | F22: 0 | G22: 0 | H22: 0 | I22: 0 | J22: 100 | K22: 0 | L22: 100 | M22: 0 | N22: 0 | O22: 0 | P22: 0 | Q22: 0 | R22: 0 | S22: 100 | T22: 0 | U22: 0 | V22: 0 | W22: 0 | X22: 0 | Y22: 0 | Z22: 0 | AA22: 0 | AB22: 0 | AC22: Ok
A23: EVERGOL XTEND FS308 50X100ML BOT IN | B23: 0 | C23: 50 | D23: 0 | E23: 0 | F23: 0 | G23: 0 | H23: 0 | I23: 0 | J23: 50 | K23: 0 | L23: 50 | M23: 0 | N23: 0 | O23: 0 | P23: 0 | Q23: 0 | R23: 0 | S23: 50 | T23: 0 | U23: 0 | V23: 0 | W23: 0 | X23: 0 | Y23: 0 | Z23: 0 | AA23: 0 | AB23: 0 | AC23: Ok
A24: FAME (T) SC480 20X100ML BOT IN | B24: 5 | C24: 0 | D24: 0 | E24: 3 | F24: 0 | G24: 0 | H24: 0 | I24: 0 | J24: 2 | K24: 5 | L24: 0 | M24: 0 | N24: 3 | O24: 0 | P24: 0 | Q24: 0 | R24: 0 | S24: 2 | T24: 0 | U24: 0 | V24: 0 | W24: 0 | X24: 0 | Y24: 0 | Z24: 0 | AA24: 0 | AB24: 0 | AC24: Ok
A25: FENOS QUICK SC150 50X100ML BOT IN | B25: 0 | C25: 50 | D25: 0 | E25: 0 | F25: 0 | G25: 0 | H25: 0 | I25: 0 | J25: 50 | K25: 0 | L25: 50 | M25: 0 | N25: 0 | O25: 0 | P25: 0 | Q25: 0 | R25: 0 | S25: 50 | T25: 0 | U25: 0 | V25: 0 | W25: 0 | X25: 0 | Y25: 0 | Z25: 0 | AA25: 0 | AB25: 0 | AC25: Ok
A26: FOLICUR (T) EC250 40X250ML BOT IN | B26: 0 | C26: 160 | D26: 0 | E26: 105 | F26: 0 | G26: 0 | H26: 0 | I26: 0 | J26: 55 | K26: 0 | L26: 160 | M26: 0 | N26: 105 | O26: 0 | P26: 0 | Q26: 0 | R26: 0 | S26: 55 | T26: 0 | U26: 0 | V26: 0 | W26: 0 | X26: 0 | Y26: 0 | Z26: 0 | AA26: 0 | AB26: 0 | AC26: Ok
A27: FOLICUR (T) EC250 50X100ML BOT IN | B27: 30 | C27: 50 | D27: 0 | E27: 105 | F27: 25 | G27: 0 | H27: 0 | I27: 0 | J27: 0 | K27: 30 | L27: 50 | M27: 0 | N27: 80 | O27: 0 | P27: 0 | Q27: 0 | R27: 0 | S27: 0 | T27: 0 | U27: 0 | V27: 0 | W27: 25 | X27: 25 | Y27: 0 | Z27: 0 | AA27: 0 | AB27: 0 | AC27: Ok
A28: FOOST WP50 24X500G BAG IN | B28: 0 | C28: 3892 | D28: 0 | E28: 2272 | F28: 0 | G28: 0 | H28: 0 | I28: 0 | J28: 1620 | K28: 0 | L28: 3892 | M28: 0 | N28: 2272 | O28: 0 | P28: 0 | Q28: 0 | R28: 0 | S28: 1620 | T28: 0 | U28: 0 | V28: 0 | W28: 0 | X28: 0 | Y28: 0 | Z28: 0 | AA28: 0 | AB28: 0 | AC28: Ok
A29: GAUCHO FS600 2X(5X1L) BOT IN | B29: 0 | C29: 10 | D29: 0 | E29: 10 | F29: 0 | G29: 0 | H29: 0 | I29: 0 | J29: 0 | K29: 0 | L29: 10 | M29: 0 | N29: 10 | O29: 0 | P29: 0 | Q29: 0 | R29: 0 | S29: 0 | T29: 0 | U29: 0 | V29: 0 | W29: 0 | X29: 0 | Y29: 0 | Z29: 0 | AA29: 0 | AB29: 0 | AC29: Ok
A30: GAUCHO FS600 100X50ML BOT IN | B30: 0 | C30: 1300 | D30: 0 | E30: 638 | F30: 0 | G30: 0 | H30: 0 | I30: 0 | J30: 662 | K30: 0 | L30: 1300 | M30: 0 | N30: 638 | O30: 0 | P30: 0 | Q30: 0 | R30: 0 | S30: 662 | T30: 0 | U30: 0 | V30: 0 | W30: 0 | X30: 0 | Y30: 0 | Z30: 0 | AA30: 0 | AB30: 0 | AC30: Ok
A31: GAUCHO FS600 2X5L BOT IN | B31: 0 | C31: 10 | D31: 0 | E31: 8 | F31: 0 | G31: 0 | H31: 0 | I31: 0 | J31: 2 | K31: 0 | L31: 10 | M31: 0 | N31: 8 | O31: 0 | P31: 0 | Q31: 0 | R31: 0 | S31: 2 | T31: 0 | U31: 0 | V31: 0 | W31: 0 | X31: 0 | Y31: 0 | Z31: 0 | AA31: 0 | AB31: 0 | AC31: Ok
A32: GAUCHO FS600 5X(20X9)ML BOT IN | B32: 0 | C32: 3500 | D32: 600 | E32: 800 | F32: 0 | G32: 0 | H32: 0 | I32: 0 | J32: 2100 | K32: 0 | L32: 2900 | M32: 0 | N32: 800 | O32: 0 | P32: 0 | Q32: 0 | R32: 0 | S32: 2100 | T32: 0 | U32: 600 | V32: 600 | W32: 0 | X32: 0 | Y32: 0 | Z32: 0 | AA32: 0 | AB32: 0 | AC32: Ok
A33: JUMP WG80 160X(10X2GR) BAG IN | B33: 0 | C33: 3205 | D33: 0 | E33: 2800 | F33: 0 | G33: 0 | H33: 0 | I33: 0 | J33: 405 | K33: 0 | L33: 3205 | M33: 0 | N33: 2800 | O33: 0 | P33: 0 | Q33: 0 | R33: 0 | S33: 405 | T33: 0 | U33: 0 | V33: 0 | W33: 0 | X33: 0 | Y33: 0 | Z33: 0 | AA33: 0 | AB33: 0 | AC33: Ok
A34: LARVIN (T) WP75 20X250GR BAG IN | B34: 0 | C34: 60 | D34: 0 | E34: 20 | F34: 0 | G34: 0 | H34: 0 | I34: 0 | J34: 40 | K34: 0 | L34: 60 | M34: 0 | N34: 20 | O34: 0 | P34: 0 | Q34: 0 | R34: 0 | S34: 40 | T34: 0 | U34: 0 | V34: 0 | W34: 0 | X34: 0 | Y34: 0 | Z34: 0 | AA34: 0 | AB34: 0 | AC34: Ok
A35: LAUDIS SC630 10X57.5ML BOT IN | B35: 0 | C35: 3766 | D35: 1720 | E35: 2130 | F35: 370 | G35: 0 | H35: 0 | I35: 0 | J35: 286 | K35: 0 | L35: 2046 | M35: 0 | N35: 1760 | O35: 0 | P35: 0 | Q35: 0 | R35: 0 | S35: 286 | T35: 0 | U35: 1720 | V35: 1720 | W35: 370 | X35: 370 | Y35: 0 | Z35: 0 | AA35: 0 | AB35: 0 | AC35: Ok
A36: LAUDIS SC630 8X115ML BOT IN | B36: 0 | C36: 480 | D36: 144 | E36: 353 | F36: 0 | G36: 0 | H36: 0 | I36: 0 | J36: -17 | K36: 0 | L36: 336 | M36: 0 | N36: 353 | O36: 0 | P36: 0 | Q36: 0 | R36: 0 | S36: -17 | T36: 0 | U36: 144 | V36: 144 | W36: 0 | X36: 0 | Y36: 0 | Z36: 0 | AA36: 0 | AB36: 0 | AC36: Ok
A37: LESENTA WG80 20X250GR BAG IN | B37: 0 | C37: 0 | D37: 0 | E37: 16 | F37: 0 | G37: 0 | H37: 0 | I37: 0 | J37: -16 | K37: 0 | L37: 0 | M37: 0 | N37: 16 | O37: 0 | P37: 0 | Q37: 0 | R37: 0 | S37: -16 | T37: 0 | U37: 0 | V37: 0 | W37: 0 | X37: 0 | Y37: 0 | Z37: 0 | AA37: 0 | AB37: 0 | AC37: Ok
A38: LESENTA WG80 50X100GR BAG IN | B38: 0 | C38: 0 | D38: 0 | E38: 1 | F38: 0 | G38: 0 | H38: 0 | I38: 0 | J38: -1 | K38: 0 | L38: 0 | M38: 0 | N38: 1 | O38: 0 | P38: 0 | Q38: 0 | R38: 0 | S38: -1 | T38: 0 | U38: 0 | V38: 0 | W38: 0 | X38: 0 | Y38: 0 | Z38: 0 | AA38: 0 | AB38: 0 | AC38: Ok
A39: LUNA EXPERIENCE SC400 40X250ML BOT IN | B39: 0 | C39: 40 | D39: 0 | E39: 5 | F39: 0 | G39: 0 | H39: 0 | I39: 0 | J39: 35 | K39: 0 | L39: 40 | M39: 0 | N39: 5 | O39: 0 | P39: 0 | Q39: 0 | R39: 0 | S39: 35 | T39: 0 | U39: 0 | V39: 0 | W39: 0 | X39: 0 | Y39: 0 | Z39: 0 | AA39: 0 | AB39: 0 | AC39: Ok
A40: MELODY DUO WP66 8 10X400GR BAG IN | B40: 0 | C40: 10 | D40: 0 | E40: 8 | F40: 0 | G40: 0 | H40: 0 | I40: 0 | J40: 2 | K40: 0 | L40: 10 | M40: 0 | N40: 8 | O40: 0 | P40: 0 | Q40: 0 | R40: 0 | S40: 2 | T40: 0 | U40: 0 | V40: 0 | W40: 0 | X40: 0 | Y40: 0 | Z40: 0 | AA40: 0 | AB40: 0 | AC40: Ok
A41: MILLET HYBRID 9001 20X1.5 BAG IN | B41: 0 | C41: 15160 | D41: 401 | E41: 14380 | F41: 160 | G41: 0 | H41: 0 | I41: 0 | J41: 539 | K41: 0 | L41: 15796 | M41: 0 | N41: 14440 | O41: 0 | P41: 0 | Q41: 0 | R41: 0 | S41: 1356 | T41: 0 | U41: -636 | V41: 401 | W41: -60 | X41: 160 | Y41: 0 | Z41: 0 | AA41: 0 | AB41: -817 | AC41: DIFF DUE TO JOURNAL ENTRY
A42: MILLET HYBRID 9444 20X1.5KG BAG IN | B42: 0 | C42: 5648 | D42: 513 | E42: 5950 | F42: 20 | G42: 0 | H42: 0 | I42: 0 | J42: -795 | K42: 0 | L42: 5676 | M42: 0 | N42: 5930 | O42: 0 | P42: 0 | Q42: 0 | R42: 0 | S42: -254 | T42: 0 | U42: -28 | V42: 513 | W42: 20 | X42: 20 | Y42: 0 | Z42: 0 | AA42: 0 | AB42: -541 | AC42: DIFF DUE TO JOURNAL ENTRY
A43: MILLET HYBRID 9450 20X1 5KG BAG IN | B43: 0 | C43: 2260 | D43: 111 | E43: 2510 | F43: 20 | G43: 0 | H43: 0 | I43: 0 | J43: -341 | K43: 0 | L43: 2418 | M43: 0 | N43: 2490 | O43: 0 | P43: 0 | Q43: 0 | R43: 0 | S43: -72 | T43: 0 | U43: -158 | V43: 111 | W43: 20 | X43: 20 | Y43: 0 | Z43: 0 | AA43: 0 | AB43: -269 | AC43: DIFF DUE TO JOURNAL ENTRY
A44: MOVENTO ENERGY SC240 10X1L BOT IN | B44: 20 | C44: 130 | D44: 40 | E44: 79 | F44: 0 | G44: 0 | H44: 0 | I44: 0 | J44: 31 | K44: 20 | L44: 90 | M44: 0 | N44: 79 | O44: 0 | P44: 0 | Q44: 0 | R44: 0 | S44: 31 | T44: 0 | U44: 40 | V44: 40 | W44: 0 | X44: 0 | Y44: 0 | Z44: 0 | AA44: 0 | AB44: 0 | AC44: Ok
A45: MOVENTO ENERGY SC240 40X250ML BOT IN | B45: 80 | C45: 960 | D45: 360 | E45: 216 | F45: 0 | G45: 0 | H45: 0 | I45: 0 | J45: 464 | K45: 80 | L45: 600 | M45: 0 | N45: 216 | O45: 0 | P45: 0 | Q45: 0 | R45: 0 | S45: 464 | T45: 0 | U45: 360 | V45: 360 | W45: 0 | X45: 0 | Y45: 0 | Z45: 0 | AA45: 0 | AB45: 0 | AC45: Ok
A46: MOVENTO ENERGY SC240 50X100ML BOT IN | B46: 15 | C46: 0 | D46: 0 | E46: 12 | F46: 0 | G46: 0 | H46: 0 | I46: 0 | J46: 3 | K46: 15 | L46: 0 | M46: 0 | N46: 12 | O46: 0 | P46: 0 | Q46: 0 | R46: 0 | S46: 3 | T46: 0 | U46: 0 | V46: 0 | W46: 0 | X46: 0 | Y46: 0 | Z46: 0 | AA46: 0 | AB46: 0 | AC46: Ok
A47: MUSTARD 5222 30X1KG BAG IN | B47: 0 | C47: 2216 | D47: 25 | E47: 2255 | F47: 0 | G47: 0 | H47: 0 | I47: 0 | J47: -64 | K47: 0 | L47: 2191 | M47: 0 | N47: 2255 | O47: 0 | P47: 0 | Q47: 0 | R47: 0 | S47: -64 | T47: 0 | U47: 25 | V47: 25 | W47: 0 | X47: 0 | Y47: 0 | Z47: 0 | AA47: 0 | AB47: 0 | AC47: Ok
A48: MUSTARD 5222 60X500G BAG IN | B48: 0 | C48: 300 | D48: 0 | E48: 300 | F48: 0 | G48: 0 | H48: 0 | I48: 0 | J48: 0 | K48: 0 | L48: 300 | M48: 0 | N48: 300 | O48: 0 | P48: 0 | Q48: 0 | R48: 0 | S48: 0 | T48: 0 | U48: 0 | V48: 0 | W48: 0 | X48: 0 | Y48: 0 | Z48: 0 | AA48: 0 | AB48: 0 | AC48: Ok
A49: NATIVO WG75 100X50GR BAG IN | B49: 75 | C49: 0 | D49: 0 | E49: 73 | F49: 0 | G49: 0 | H49: 0 | I49: 0 | J49: 2 | K49: 75 | L49: 0 | M49: 0 | N49: 73 | O49: 0 | P49: 0 | Q49: 0 | R49: 0 | S49: 2 | T49: 0 | U49: 0 | V49: 0 | W49: 0 | X49: 0 | Y49: 0 | Z49: 0 | AA49: 0 | AB49: 0 | AC49: Ok
A50: NATIVO WG75 10X1KG BAG IN | B50: 0 | C50: 20 | D50: 10 | E50: 10 | F50: 0 | G50: 0 | H50: 0 | I50: 0 | J50: 0 | K50: 0 | L50: 10 | M50: 0 | N50: 10 | O50: 0 | P50: 0 | Q50: 0 | R50: 0 | S50: 0 | T50: 0 | U50: 10 | V50: 10 | W50: 0 | X50: 0 | Y50: 0 | Z50: 0 | AA50: 0 | AB50: 0 | AC50: Ok
A51: NATIVO WG75 20X500GR BAG IN | B51: 10 | C51: 0 | D51: 0 | E51: 9 | F51: 0 | G51: 0 | H51: 0 | I51: 0 | J51: 1 | K51: 10 | L51: 0 | M51: 0 | N51: 9 | O51: 0 | P51: 0 | Q51: 0 | R51: 0 | S51: 1 | T51: 0 | U51: 0 | V51: 0 | W51: 0 | X51: 0 | Y51: 0 | Z51: 0 | AA51: 0 | AB51: 0 | AC51: Ok
A52: NATIVO WG75 40X250GR BAG IN | B52: 0 | C52: 120 | D52: 40 | E52: 28 | F52: 0 | G52: 0 | H52: 0 | I52: 0 | J52: 52 | K52: 0 | L52: 80 | M52: 0 | N52: 28 | O52: 0 | P52: 0 | Q52: 0 | R52: 0 | S52: 52 | T52: 0 | U52: 40 | V52: 40 | W52: 0 | X52: 0 | Y52: 0 | Z52: 0 | AA52: 0 | AB52: 0 | AC52: Ok
A53: NATIVO WG75 50X100GR BAG IN | B53: 0 | C53: 650 | D53: 0 | E53: 365 | F53: 0 | G53: 0 | H53: 0 | I53: 0 | J53: 285 | K53: 0 | L53: 650 | M53: 0 | N53: 365 | O53: 0 | P53: 0 | Q53: 0 | R53: 0 | S53: 285 | T53: 0 | U53: 0 | V53: 0 | W53: 0 | X53: 0 | Y53: 0 | Z53: 0 | AA53: 0 | AB53: 0 | AC53: Ok
A54: OBERON (T) SC240 20X500ML BOT IN | B54: 0 | C54: 11 | D54: 0 | E54: 11 | F54: 0 | G54: 0 | H54: 0 | I54: 0 | J54: 0 | K54: 0 | L54: 11 | M54: 0 | N54: 11 | O54: 0 | P54: 0 | Q54: 0 | R54: 0 | S54: 0 | T54: 0 | U54: 0 | V54: 0 | W54: 0 | X54: 0 | Y54: 0 | Z54: 0 | AA54: 0 | AB54: 0 | AC54: Ok
A55: OBERON (T) SC240 40X200ML BOT IN | B55: 60 | C55: 209 | D55: 0 | E55: 162 | F55: 0 | G55: 0 | H55: 0 | I55: 0 | J55: 107 | K55: 60 | L55: 209 | M55: 0 | N55: 162 | O55: 0 | P55: 0 | Q55: 0 | R55: 0 | S55: 107 | T55: 0 | U55: 0 | V55: 0 | W55: 0 | X55: 0 | Y55: 0 | Z55: 0 | AA55: 0 | AB55: 0 | AC55: Ok
A56: OBERON (T) SC240 50X100ML BOT IN | B56: 0 | C56: 350 | D56: 0 | E56: 305 | F56: 0 | G56: 0 | H56: 0 | I56: 0 | J56: 45 | K56: 0 | L56: 350 | M56: 0 | N56: 305 | O56: 0 | P56: 0 | Q56: 0 | R56: 0 | S56: 45 | T56: 0 | U56: 0 | V56: 0 | W56: 0 | X56: 0 | Y56: 0 | Z56: 0 | AA56: 0 | AB56: 0 | AC56: Ok
A57: PLANOFIX SL4 5 40X250ML BOT IN | B57: 80 | C57: 0 | D57: 0 | E57: 47 | F57: 0 | G57: 0 | H57: 0 | I57: 0 | J57: 33 | K57: 80 | L57: 0 | M57: 0 | N57: 47 | O57: 0 | P57: 0 | Q57: 0 | R57: 0 | S57: 33 | T57: 0 | U57: 0 | V57: 0 | W57: 0 | X57: 0 | Y57: 0 | Z57: 0 | AA57: 0 | AB57: 0 | AC57: Ok
A58: PLANOFIX SL4 5 50X100ML BOT IN | B58: 0 | C58: 1250 | D58: 0 | E58: 405 | F58: 0 | G58: 0 | H58: 0 | I58: 0 | J58: 845 | K58: 0 | L58: 1250 | M58: 0 | N58: 405 | O58: 0 | P58: 0 | Q58: 0 | R58: 0 | S58: 845 | T58: 0 | U58: 0 | V58: 0 | W58: 0 | X58: 0 | Y58: 0 | Z58: 0 | AA58: 0 | AB58: 0 | AC58: Ok
A59: RAXIL EASY FS60 10X1L BOT IN | B59: 0 | C59: 100 | D59: 0 | E59: 100 | F59: 0 | G59: 0 | H59: 0 | I59: 0 | J59: 0 | K59: 0 | L59: 100 | M59: 0 | N59: 100 | O59: 0 | P59: 0 | Q59: 0 | R59: 0 | S59: 0 | T59: 0 | U59: 0 | V59: 0 | W59: 0 | X59: 0 | Y59: 0 | Z59: 0 | AA59: 0 | AB59: 0 | AC59: Ok
A60: REGENT (T) SC50 20X250ML BOT IN | B60: 0 | C60: 4100 | D60: 0 | E60: 3800 | F60: 0 | G60: 0 | H60: 0 | I60: 0 | J60: 300 | K60: 0 | L60: 4100 | M60: 0 | N60: 3800 | O60: 0 | P60: 0 | Q60: 0 | R60: 0 | S60: 300 | T60: 0 | U60: 0 | V60: 0 | W60: 0 | X60: 0 | Y60: 0 | Z60: 0 | AA60: 0 | AB60: 0 | AC60: Ok
A61: REGENT (T) SC50 20X500ML BOT IN | B61: 0 | C61: 2058 | D61: 0 | E61: 1816 | F61: 0 | G61: 0 | H61: 0 | I61: 0 | J61: 242 | K61: 0 | L61: 2058 | M61: 0 | N61: 1816 | O61: 0 | P61: 0 | Q61: 0 | R61: 0 | S61: 242 | T61: 0 | U61: 0 | V61: 0 | W61: 0 | X61: 0 | Y61: 0 | Z61: 0 | AA61: 0 | AB61: 0 | AC61: Ok
A62: REGENT (T) SC50 50X100ML BOT IN | B62: 0 | C62: 3800 | D62: 0 | E62: 3785 | F62: 0 | G62: 0 | H62: 0 | I62: 0 | J62: 15 | K62: 0 | L62: 3800 | M62: 0 | N62: 3785 | O62: 0 | P62: 0 | Q62: 0 | R62: 0 | S62: 15 | T62: 0 | U62: 0 | V62: 0 | W62: 0 | X62: 0 | Y62: 0 | Z62: 0 | AA62: 0 | AB62: 0 | AC62: Ok
A63: REGENT GOLD SC200 40X250ML BOT IN | B63: 60 | C63: 0 | D63: 0 | E63: 35 | F63: 0 | G63: 0 | H63: 0 | I63: 0 | J63: 25 | K63: 60 | L63: 0 | M63: 0 | N63: 35 | O63: 0 | P63: 0 | Q63: 0 | R63: 0 | S63: 25 | T63: 0 | U63: 0 | V63: 0 | W63: 0 | X63: 0 | Y63: 0 | Z63: 0 | AA63: 0 | AB63: 0 | AC63: Ok
A64: REGENT GOLD SC200 50X100ML BOT IN | B64: 100 | C64: 0 | D64: 0 | E64: 50 | F64: 0 | G64: 0 | H64: 0 | I64: 0 | J64: 50 | K64: 100 | L64: 0 | M64: 0 | N64: 50 | O64: 0 | P64: 0 | Q64: 0 | R64: 0 | S64: 50 | T64: 0 | U64: 0 | V64: 0 | W64: 0 | X64: 0 | Y64: 0 | Z64: 0 | AA64: 0 | AB64: 0 | AC64: Ok
A65: REGENT GR0 3 1X25KG BOX WW | B65: 0 | C65: 1000 | D65: 0 | E65: 800 | F65: 0 | G65: 0 | H65: 0 | I65: 0 | J65: 200 | K65: 0 | L65: 1000 | M65: 0 | N65: 800 | O65: 0 | P65: 0 | Q65: 0 | R65: 0 | S65: 200 | T65: 0 | U65: 0 | V65: 0 | W65: 0 | X65: 0 | Y65: 0 | Z65: 0 | AA65: 0 | AB65: 0 | AC65: Ok
A66: REGENT GR0 3 20X1KG BAG IN | B66: 1000 | C66: 10620 | D66: 0 | E66: 8320 | F66: 0 | G66: 0 | H66: 0 | I66: 0 | J66: 3300 | K66: 1000 | L66: 10620 | M66: 0 | N66: 8320 | O66: 0 | P66: 0 | Q66: 0 | R66: 0 | S66: 3300 | T66: 0 | U66: 0 | V66: 0 | W66: 0 | X66: 0 | Y66: 0 | Z66: 0 | AA66: 0 | AB66: 0 | AC66: Ok
A67: REGENT ULTRA GR0 6 5X4KG BAG IN | B67: 0 | C67: 260 | D67: 0 | E67: 0 | F67: 0 | G67: 0 | H67: 0 | I67: 0 | J67: 260 | K67: 0 | L67: 260 | M67: 0 | N67: 0 | O67: 0 | P67: 0 | Q67: 0 | R67: 0 | S67: 260 | T67: 0 | U67: 0 | V67: 0 | W67: 0 | X67: 0 | Y67: 0 | Z67: 0 | AA67: 0 | AB67: 0 | AC67: Ok
A68: SECTIN WG60 10X1KG BAG IN | B68: 0 | C68: 50 | D68: 0 | E68: 48 | F68: 0 | G68: 0 | H68: 0 | I68: 0 | J68: 2 | K68: 0 | L68: 50 | M68: 0 | N68: 48 | O68: 0 | P68: 0 | Q68: 0 | R68: 0 | S68: 2 | T68: 0 | U68: 0 | V68: 0 | W68: 0 | X68: 0 | Y68: 0 | Z68: 0 | AA68: 0 | AB68: 0 | AC68: Ok
A69: SENCOR WP70 60X100GR BAG IN | B69: 0 | C69: 1380 | D69: 0 | E69: 1120 | F69: 0 | G69: 0 | H69: 0 | I69: 0 | J69: 260 | K69: 0 | L69: 1380 | M69: 0 | N69: 1120 | O69: 0 | P69: 0 | Q69: 0 | R69: 0 | S69: 260 | T69: 0 | U69: 0 | V69: 0 | W69: 0 | X69: 0 | Y69: 0 | Z69: 0 | AA69: 0 | AB69: 0 | AC69: Ok
A70: SIMBOLA (T) SG20 20X250G BOT IN | B70: 0 | C70: 20 | D70: 0 | E70: 0 | F70: 0 | G70: 0 | H70: 0 | I70: 0 | J70: 20 | K70: 0 | L70: 20 | M70: 0 | N70: 0 | O70: 0 | P70: 0 | Q70: 0 | R70: 0 | S70: 20 | T70: 0 | U70: 0 | V70: 0 | W70: 0 | X70: 0 | Y70: 0 | Z70: 0 | AA70: 0 | AB70: 0 | AC70: Ok
A71: SOLOMON OD300 20X500ML BOT IN | B71: 0 | C71: 20 | D71: 0 | E71: 5 | F71: 0 | G71: 0 | H71: 0 | I71: 0 | J71: 15 | K71: 0 | L71: 20 | M71: 0 | N71: 5 | O71: 0 | P71: 0 | Q71: 0 | R71: 0 | S71: 15 | T71: 0 | U71: 0 | V71: 0 | W71: 0 | X71: 0 | Y71: 0 | Z71: 0 | AA71: 0 | AB71: 0 | AC71: Ok
A72: SOLOMON OD300 40X250ML BOT IN | B72: 5 | C72: 320 | D72: 0 | E72: 202 | F72: 0 | G72: 0 | H72: 0 | I72: 0 | J72: 123 | K72: 5 | L72: 320 | M72: 0 | N72: 202 | O72: 0 | P72: 0 | Q72: 0 | R72: 0 | S72: 123 | T72: 0 | U72: 0 | V72: 0 | W72: 0 | X72: 0 | Y72: 0 | Z72: 0 | AA72: 0 | AB72: 0 | AC72: Ok
A73: SOLOMON OD300 50X100ML BOT IN | B73: 0 | C73: 150 | D73: 0 | E73: 55 | F73: 0 | G73: 0 | H73: 0 | I73: 0 | J73: 95 | K73: 0 | L73: 150 | M73: 0 | N73: 55 | O73: 0 | P73: 0 | Q73: 0 | R73: 0 | S73: 95 | T73: 0 | U73: 0 | V73: 0 | W73: 0 | X73: 0 | Y73: 0 | Z73: 0 | AA73: 0 | AB73: 0 | AC73: Ok
A74: SUNRICE WG15 100X50GR BOT IN | B74: 0 | C74: 200 | D74: 0 | E74: 25 | F74: 0 | G74: 0 | H74: 0 | I74: 0 | J74: 175 | K74: 0 | L74: 200 | M74: 0 | N74: 25 | O74: 0 | P74: 0 | Q74: 0 | R74: 0 | S74: 175 | T74: 0 | U74: 0 | V74: 0 | W74: 0 | X74: 0 | Y74: 0 | Z74: 0 | AA74: 0 | AB74: 0 | AC74: Ok
A75: SURPASS 7272 BG2 (LOC) 20X450G BAG IN | B75: 0 | C75: 720 | D75: 105 | E75: 364 | F75: 0 | G75: 0 | H75: 0 | I75: 0 | J75: 251 | K75: 0 | L75: 616 | M75: 0 | N75: 364 | O75: 0 | P75: 0 | Q75: 0 | R75: 0 | S75: 252 | T75: 0 | U75: 104 | V75: 105 | W75: 0 | X75: 0 | Y75: 0 | Z75: 0 | AA75: 0 | AB75: -1 | AC75: DIFF DUE TO JOURNAL ENTRY
A76: VELUM PRIME SC400 20X500ML BOT IN | B76: 0 | C76: 20 | D76: 0 | E76: 0 | F76: 0 | G76: 0 | H76: 0 | I76: 0 | J76: 20 | K76: 0 | L76: 20 | M76: 0 | N76: 0 | O76: 0 | P76: 0 | Q76: 0 | R76: 0 | S76: 20 | T76: 0 | U76: 0 | V76: 0 | W76: 0 | X76: 0 | Y76: 0 | Z76: 0 | AA76: 0 | AB76: 0 | AC76: Ok
A77: VELUM PRIME SC400 40X250ML BOT IN | B77: 1 | C77: 120 | D77: 0 | E77: 12 | F77: 0 | G77: 0 | H77: 0 | I77: 0 | J77: 109 | K77: 1 | L77: 120 | M77: 0 | N77: 12 | O77: 0 | P77: 0 | Q77: 0 | R77: 0 | S77: 109 | T77: 0 | U77: 0 | V77: 0 | W77: 0 | X77: 0 | Y77: 0 | Z77: 0 | AA77: 0 | AB77: 0 | AC77: Ok
A78: WHIPSUPER (T) EC90 40X250ML BOT IN | B78: 0 | C78: 40 | D78: 0 | E78: 5 | F78: 0 | G78: 0 | H78: 0 | I78: 0 | J78: 35 | K78: 0 | L78: 40 | M78: 0 | N78: 5 | O78: 0 | P78: 0 | Q78: 0 | R78: 0 | S78: 35 | T78: 0 | U78: 0 | V78: 0 | W78: 0 | X78: 0 | Y78: 0 | Z78: 0 | AA78: 0 | AB78: 0 | AC78: Ok
A79: SURPASS 7172 BG2 20X450GR BAG IN | B79: 0 | C79: 2281 | D79: 497 | E79: 940 | F79: 11 | G79: 0 | H79: 0 | I79: 0 | J79: 855 | K79: 0 | L79: 1908 | M79: 0 | N79: 949 | O79: 0 | P79: 0 | Q79: 0 | R79: 0 | S79: 959 | T79: 0 | U79: 373 | V79: 497 | W79: -9 | X79: 11 | Y79: 0 | Z79: 0 | AA79: 0 | AB79: -104 | AC79: DIFF DUE TO JOURNAL ENTRY
A80: DECIS EC101-2 50X100ML BOX IN | B80: 0 | C80: 0 | D80: 0 | E80: 10 | F80: 0 | G80: 0 | H80: 0 | I80: 0 | J80: -10 | K80: 0 | L80: 0 | M80: 0 | N80: 10 | O80: 0 | P80: 0 | Q80: 0 | R80: 0 | S80: -10 | T80: 0 | U80: 0 | V80: 0 | W80: 0 | X80: 0 | Y80: 0 | Z80: 0 | AA80: 0 | AB80: 0 | AC80: Ok
A81: MILLET PA 9180 (LOC) 20X1.50KG BAG IN | B81: 0 | C81: 4280 | D81: 2039 | E81: 2460 | F81: 80 | G81: 0 | H81: 0 | I81: 0 | J81: -139 | K81: 0 | L81: 2549 | M81: 0 | N81: 2380 | O81: 0 | P81: 0 | Q81: 0 | R81: 0 | S81: 169 | T81: 0 | U81: 1731 | V81: 2039 | W81: 80 | X81: 80 | Y81: 0 | Z81: 0 | AA81: 0 | AB81: -308 | AC81: DIFF DUE TO JOURNAL ENTRY
A82: MUSTARD PA 5210 (LOC) 30X1KG BAG IN | B82: 0 | C82: 1025 | D82: 248 | E82: 695 | F82: 0 | G82: 0 | H82: 0 | I82: 0 | J82: 82 | K82: 0 | L82: 955 | M82: 0 | N82: 705 | O82: 0 | P82: 0 | Q82: 0 | R82: 0 | S82: 250 | T82: 0 | U82: 70 | V82: 248 | W82: -10 | X82: 0 | Y82: 0 | Z82: 0 | AA82: 0 | AB82: -168 | AC82: DIFF DUE TO JOURNAL ENTRY
A83: MUSTARD PA 5232 (LOC) 30X1KG BAG IN | B83: 0 | C83: 150 | D83: 0 | E83: 60 | F83: 0 | G83: 0 | H83: 0 | I83: 0 | J83: 90 | K83: 0 | L83: 150 | M83: 0 | N83: 60 | O83: 0 | P83: 0 | Q83: 0 | R83: 0 | S83: 90 | T83: 0 | U83: 0 | V83: 0 | W83: 0 | X83: 0 | Y83: 0 | Z83: 0 | AA83: 0 | AB83: 0 | AC83: Ok
A84: RAXIL EASY FS60 10X(20X13.4ML) BOT IN | B84: 0 | C84: 600 | D84: 200 | E84: 40 | F84: 0 | G84: 0 | H84: 0 | I84: 0 | J84: 360 | K84: 0 | L84: 400 | M84: 0 | N84: 40 | O84: 0 | P84: 0 | Q84: 0 | R84: 0 | S84: 360 | T84: 0 | U84: 200 | V84: 200 | W84: 0 | X84: 0 | Y84: 0 | Z84: 0 | AA84: 0 | AB84: 0 | AC84: Ok
A85: SECTIN WG60 20X600GR BAG IN | B85: 0 | C85: 120 | D85: 0 | E85: 100 | F85: 0 | G85: 0 | H85: 0 | I85: 0 | J85: 20 | K85: 0 | L85: 120 | M85: 0 | N85: 100 | O85: 0 | P85: 0 | Q85: 0 | R85: 0 | S85: 20 | T85: 0 | U85: 0 | V85: 0 | W85: 0 | X85: 0 | Y85: 0 | Z85: 0 | AA85: 0 | AB85: 0 | AC85: Ok
A86: BUONOS SC430 40X250ML BOT IN | B86: 0 | C86: 80 | D86: 0 | E86: 5 | F86: 0 | G86: 0 | H86: 0 | I86: 0 | J86: 75 | K86: 0 | L86: 80 | M86: 0 | N86: 5 | O86: 0 | P86: 0 | Q86: 0 | R86: 0 | S86: 75 | T86: 0 | U86: 0 | V86: 0 | W86: 0 | X86: 0 | Y86: 0 | Z86: 0 | AA86: 0 | AB86: 0 | AC86: Ok
A87: BUONOS SC430 20X500ML BOT IN | B87: 0 | C87: 20 | D87: 0 | E87: 0 | F87: 0 | G87: 0 | H87: 0 | I87: 0 | J87: 20 | K87: 0 | L87: 20 | M87: 0 | N87: 0 | O87: 0 | P87: 0 | Q87: 0 | R87: 0 | S87: 20 | T87: 0 | U87: 0 | V87: 0 | W87: 0 | X87: 0 | Y87: 0 | Z87: 0 | AA87: 0 | AB87: 0 | AC87: Ok
A88: ADUE WG70 15X40G BOT IN | B88: 0 | C88: 0 | D88: 0 | E88: 0 | F88: 0 | G88: 0 | H88: 0 | I88: 0 | J88: 0 | K88: 0 | L88: 0 | M88: 0 | N88: 0 | O88: 0 | P88: 0 | Q88: 0 | R88: 0 | S88: 0 | T88: 0 | U88: 0 | V88: 0 | W88: 0 | X88: 0 | Y88: 0 | Z88: 0 | AA88: 0 | AB88: 0 | AC88: Ok
A89: ALANTO (T) SC240 40X250ML BOT IN | B89: 0 | C89: 0 | D89: 0 | E89: 0 | F89: 0 | G89: 0 | H89: 0 | I89: 0 | J89: 0 | K89: 0 | L89: 0 | M89: 0 | N89: 0 | O89: 0 | P89: 0 | Q89: 0 | R89: 0 | S89: 0 | T89: 0 | U89: 0 | V89: 0 | W89: 0 | X89: 0 | Y89: 0 | Z89: 0 | AA89: 0 | AB89: 0 | AC89: Ok
A90: ALANTO (T) SC240 50X100ML BOT IN | B90: 0 | C90: 0 | D90: 0 | E90: 0 | F90: 0 | G90: 0 | H90: 0 | I90: 0 | J90: 0 | K90: 0 | L90: 0 | M90: 0 | N90: 0 | O90: 0 | P90: 0 | Q90: 0 | R90: 0 | S90: 0 | T90: 0 | U90: 0 | V90: 0 | W90: 0 | X90: 0 | Y90: 0 | Z90: 0 | AA90: 0 | AB90: 0 | AC90: Ok
A91: CONFIDOR (T) SL200 100X50ML BOT IN | B91: 0 | C91: 0 | D91: 0 | E91: 0 | F91: 0 | G91: 0 | H91: 0 | I91: 0 | J91: 0 | K91: 0 | L91: 0 | M91: 0 | N91: 0 | O91: 0 | P91: 0 | Q91: 0 | R91: 0 | S91: 0 | T91: 0 | U91: 0 | V91: 0 | W91: 0 | X91: 0 | Y91: 0 | Z91: 0 | AA91: 0 | AB91: 0 | AC91: Ok
A92: CONFIDOR SUPER (T) SC350 50X100ML BOT IN | B92: 0 | C92: 0 | D92: 0 | E92: 0 | F92: 0 | G92: 0 | H92: 0 | I92: 0 | J92: 0 | K92: 0 | L92: 0 | M92: 0 | N92: 0 | O92: 0 | P92: 0 | Q92: 0 | R92: 0 | S92: 0 | T92: 0 | U92: 0 | V92: 0 | W92: 0 | X92: 0 | Y92: 0 | Z92: 0 | AA92: 0 | AB92: 0 | AC92: Ok
A93: CONFIDOR SUPER (T) SC350 50X50ML BOT IN | B93: 0 | C93: 0 | D93: 0 | E93: 0 | F93: 0 | G93: 0 | H93: 0 | I93: 0 | J93: 0 | K93: 0 | L93: 0 | M93: 0 | N93: 0 | O93: 0 | P93: 0 | Q93: 0 | R93: 0 | S93: 0 | T93: 0 | U93: 0 | V93: 0 | W93: 0 | X93: 0 | Y93: 0 | Z93: 0 | AA93: 0 | AB93: 0 | AC93: Ok
A94: DECIS EC 28 10X1L BOT IN | B94: 0 | C94: 0 | D94: 0 | E94: 0 | F94: 0 | G94: 0 | H94: 0 | I94: 0 | J94: 0 | K94: 0 | L94: 0 | M94: 0 | N94: 0 | O94: 0 | P94: 0 | Q94: 0 | R94: 0 | S94: 0 | T94: 0 | U94: 0 | V94: 0 | W94: 0 | X94: 0 | Y94: 0 | Z94: 0 | AA94: 0 | AB94: 0 | AC94: Ok
A95: FAME (T) SC480 40X50ML BOT IN | B95: 0 | C95: 0 | D95: 0 | E95: 0 | F95: 0 | G95: 0 | H95: 0 | I95: 0 | J95: 0 | K95: 0 | L95: 0 | M95: 0 | N95: 0 | O95: 0 | P95: 0 | Q95: 0 | R95: 0 | S95: 0 | T95: 0 | U95: 0 | V95: 0 | W95: 0 | X95: 0 | Y95: 0 | Z95: 0 | AA95: 0 | AB95: 0 | AC95: Ok
A96: FOLICUR (T) EC250 20X500ML BOT IN | B96: 0 | C96: 0 | D96: 0 | E96: 0 | F96: 0 | G96: 0 | H96: 0 | I96: 0 | J96: 0 | K96: 0 | L96: 0 | M96: 0 | N96: 0 | O96: 0 | P96: 0 | Q96: 0 | R96: 0 | S96: 0 | T96: 0 | U96: 0 | V96: 0 | W96: 0 | X96: 0 | Y96: 0 | Z96: 0 | AA96: 0 | AB96: 0 | AC96: Ok
A97: INFINITO SC687 5 20X500ML BOT IN | B97: 0 | C97: 0 | D97: 0 | E97: 0 | F97: 0 | G97: 0 | H97: 0 | I97: 0 | J97: 0 | K97: 0 | L97: 40 | M97: 0 | N97: 7 | O97: 0 | P97: 0 | Q97: 0 | R97: 0 | S97: 33 | T97: 0 | U97: -40 | V97: 0 | W97: -7 | X97: 0 | Y97: 0 | Z97: 0 | AA97: 0 | AB97: -33 | AC97: DIFF DUE TO JOURNAL ENTRY
A98: LUCIFER (T) WP15 25X160GR BAG IN | B98: 0 | C98: 0 | D98: 0 | E98: 0 | F98: 0 | G98: 0 | H98: 0 | I98: 0 | J98: 0 | K98: 0 | L98: 0 | M98: 0 | N98: 0 | O98: 0 | P98: 0 | Q98: 0 | R98: 0 | S98: 0 | T98: 0 | U98: 0 | V98: 0 | W98: 0 | X98: 0 | Y98: 0 | Z98: 0 | AA98: 0 | AB98: 0 | AC98: Ok
A99: MILLET 9001 (LOC) 6X4.5KG BAG IN | B99: 0 | C99: 0 | D99: 0 | E99: 0 | F99: 0 | G99: 0 | H99: 0 | I99: 0 | J99: 0 | K99: 0 | L99: 0 | M99: 0 | N99: 0 | O99: 0 | P99: 0 | Q99: 0 | R99: 0 | S99: 0 | T99: 0 | U99: 0 | V99: 0 | W99: 0 | X99: 0 | Y99: 0 | Z99: 0 | AA99: 0 | AB99: 0 | AC99: Ok
A100: MILLET HYBRID 9444 GOLD 20X1.50KG BAG IN | B100: 0 | C100: 0 | D100: 0 | E100: 0 | F100: 0 | G100: 0 | H100: 0 | I100: 0 | J100: 0 | K100: 0 | L100: 0 | M100: 0 | N100: 0 | O100: 0 | P100: 0 | Q100: 0 | R100: 0 | S100: 0 | T100: 0 | U100: 0 | V100: 0 | W100: 0 | X100: 0 | Y100: 0 | Z100: 0 | AA100: 0 | AB100: 0 | AC100: Ok
A101: REGENT (T) SC50 10X1L BOT IN | B101: 0 | C101: 0 | D101: 0 | E101: 0 | F101: 0 | G101: 0 | H101: 0 | I101: 0 | J101: 0 | K101: 0 | L101: 570 | M101: 0 | N101: 475 | O101: 0 | P101: 0 | Q101: 0 | R101: 0 | S101: 95 | T101: 0 | U101: -570 | V101: 0 | W101: -475 | X101: 0 | Y101: 0 | Z101: 0 | AA101: 0 | AB101: -95 | AC101: DIFF DUE TO JOURNAL ENTRY
A102: SECTIN WG60 50X100GR BAG IN | B102: 0 | C102: 0 | D102: 0 | E102: 0 | F102: 0 | G102: 0 | H102: 0 | I102: 0 | J102: 0 | K102: 0 | L102: 0 | M102: 0 | N102: 0 | O102: 0 | P102: 0 | Q102: 0 | R102: 0 | S102: 0 | T102: 0 | U102: 0 | V102: 0 | W102: 0 | X102: 0 | Y102: 0 | Z102: 0 | AA102: 0 | AB102: 0 | AC102: Ok
A103: SOLOMON OD300 10X1L BOT IN | B103: 0 | C103: 0 | D103: 0 | E103: 0 | F103: 0 | G103: 0 | H103: 0 | I103: 0 | J103: 0 | K103: 0 | L103: 0 | M103: 0 | N103: 0 | O103: 0 | P103: 0 | Q103: 0 | R103: 0 | S103: 0 | T103: 0 | U103: 0 | V103: 0 | W103: 0 | X103: 0 | Y103: 0 | Z103: 0 | AA103: 0 | AB103: 0 | AC103: Ok
A104: SPINTOR SC495 20X75ML BOT IN | B104: 0 | C104: 0 | D104: 0 | E104: 0 | F104: 0 | G104: 0 | H104: 0 | I104: 0 | J104: 0 | K104: 0 | L104: 0 | M104: 0 | N104: 0 | O104: 0 | P104: 0 | Q104: 0 | R104: 0 | S104: 0 | T104: 0 | U104: 0 | V104: 0 | W104: 0 | X104: 0 | Y104: 0 | Z104: 0 | AA104: 0 | AB104: 0 | AC104: Ok
A105: Total | B105: 1541 | C105: 86481 | D105: 7213 | E105: 64205 | F105: 686 | G105: 0 | H105: 0 | I105: 0 | J105: 17290 | K105: 1541 | L105: 83176 | M105: 0 | N105: 63769 | O105: 0 | P105: 0 | Q105: 0 | R105: 0 | S105: 20948 | T105: 0 | U105: 3305 | V105: 7213 | W105: 436 | X105: 686 | Y105: 0 | Z105: 0 | AA105: 0 | AB105: =SUM(AB4:AB104) -> -2386
